Workbook

Sheet 流出係数算出
I1: 行為前Σan | J1: 行為後Σan
E2: 流出係数算定結果 | G2: 行為前 | H2: 行為後 | I2: =SUM($G$9:$G$95) -> 0.148725 | J2: =SUM($H$9:$H$95) -> 0.148725
G3: =$I$4/$I$2 -> 0.2 | H3: =$J$4/$J$2 -> 0.8257017986 | I3: 行為前Σ(fn*an) | J3: 行為後Σ(fn*an)
I4: =SUM($I$9:$I$95) -> 0.029745 | J4: =SUM($J$9:$J$95) -> 0.1228025
B5: 雨水浸透阻害行為の技術基準として設定する流出係数
B7: 区分 | E7: 土地利用の形態の細区分 | F7: 流出係数 | G7: 行為前面積 （ha） | H7: 行為後面積 （ha）
B8: 計 | F8: － | G8: =SUM(G9:G31) -> 0.148725 | H8: =SUM(H9:H31) -> 0.148725
B9: 宅地等に該当する土地 | C9: 第１号関連 | E9: 宅地 | F9: 0.9 | H9: =0.040921+0.082925 -> 0.123846 | I9: =$F9*$G9 -> 0 | J9: =$F9*$H9 -> 0.1114614
E10: 池沼 | F10: 1 | I10: 0 | J10: 0
E11: 水路 | F11: 1 | I11: 0 | J11: 0
E12: ため池 | F12: 1 | I12: 0 | J12: 0
E13: 道路(法面を有しないもの） | F13: 0.9 | I13: 0 | J13: 0
E14: 道路（法面を有するもの） | I14: 0 | J14: 0
E15: 鉄道線路（法面を有しないもの） | F15: 0.9 | I15: 0 | J15: 0
E16: 鉄道線路（法面を有するもの） | I16: 0 | J16: 0
E17: 飛行場（法面を有しないもの） | F17: 0.9 | I17: 0 | J17: 0
E18: 飛行場（法面を有するもの） | I18: 0 | J18: 0
B19: 宅地等以外の土地 | C19: 第２号 関 連 | E19: 不浸透性材料により舗装された土地（法面を除く） | F19: 0.95 | I19: 0 | J19: 0
E20: 不浸透性材料により覆われた法面 | F20: 1 | I20: 0 | J20: 0
C21: 第３号 関 連 | E21: ゴルフ場（雨水を排除するための排水施設を伴うものに限る） | F21: 0.5 | I21: 0 | J21: 0
E22: 運動場その他これに類する施設（雨水を排除するための排水施設を伴うものに限る） | F22: 0.8 | I22: 0 | J22: 0
E23: ローラーその他これに類する建設機械を用いて締め固められた土地 | F23: 0.5 | H23: 0.013895 | I23: 0 | J23: 0.0069475
C24: 上記第１号から第３号に掲げる土地以外の土地 | E24: 山地 | F24: 0.3 | I24: 0 | J24: 0
E25: 人工的に造成され植生に覆われた法面 | F25: 0.4 | H25: 0.010984 | I25: 0 | J25: 0.0043936
E26: 林地、耕地、原野その他ローラーその他これに類する建設機械を用いて締め固められていない土地 | F26: 0.2 | G26: 0.148725 | I26: =$F26*$G26 -> 0.029745 | J26: 0
B27: そ の 他 | I27: 0 | J27: 0
I28: 0 | J28: 0
I29: 0 | J29: 0
I30: 0 | J30: 0
I31: 0 | J31: 0

Sheet 降雨強度
A1: ※降雨は対象地域の降雨に変更して下さい
A2: 時 | B2: 分 | C2: 降雨量 （mm/h） | D2: 時 | E2: 分 | F2: 降雨量 （mm/h） | G2: 時 | H2: 分 | I2: 降雨量 （mm/h） | J2: 時 | K2: 分 | L2: 降雨量 （mm/h）
A3: 0 | B3: 0－10 | C3: 0.4944213587 | D3: 6 | E3: 0－10 | F3: 0.989842139 | G3: 12 | H3: 0－10 | I3: 49.59857116 | J3: 18 | K3: 0－10 | L3: 0.9489821183
B4: 10－20 | C4: 0.5011909372 | E4: 10－20 | F4: 1.019166395 | H4: 10－20 | I4: 24.31333869 | K4: 10－20 | L4: 0.9236248415
B5: 20－30 | C5: 0.5081588955 | E5: 20－30 | F5: 1.050341994 | H5: 20－30 | I5: 15.4903764 | K5: 20－30 | L5: 0.8996319644
B6: 30－40 | C6: 0.5153341759 | E6: 30－40 | F6: 1.083549546 | H6: 30－40 | I6: 11.1494196 | K6: 30－40 | L6: 0.8768962185
B7: 40－50 | C7: 0.5227262679 | E7: 40－50 | F7: 1.118993781 | H7: 40－50 | I7: 8.617613539 | K7: 40－50 | L7: 0.8553212506
B8: 50－60 | C8: 0.5303452497 | E8: 50－60 | F8: 1.156907674 | H8: 50－60 | I8: 6.97933275 | K8: 50－60 | L8: 0.8348202748
A9: 1 | B9: 0－10 | C9: 0.5382018351 | D9: 7 | E9: 0－10 | F9: 1.197557461 | G9: 13 | H9: 0－10 | I9: 5.841818951 | J9: 19 | K9: 0－10 | L9: 0.8153149179
B10: 10－20 | C10: 0.5463074242 | E10: 10－20 | F10: 1.241248737 | H10: 10－20 | I10: 5.010611116 | K10: 10－20 | L10: 0.7967342284
B11: 20－30 | C11: 0.5546741593 | E11: 20－30 | F11: 1.288333956 | H11: 20－30 | I11: 4.379227533 | K11: 20－30 | L11: 0.7790138213
B12: 30－40 | C12: 0.5633149859 | E12: 30－40 | F12: 1.339221682 | H12: 30－40 | I12: 3.884819444 | K12: 30－40 | L12: 0.7620951382
B13: 40－50 | C13: 0.5722437206 | E13: 40－50 | F13: 1.394388116 | H13: 40－50 | I13: 3.48806767 | K13: 40－50 | L13: 0.7459248049
B14: 50－60 | C14: 0.5814751252 | E14: 50－60 | F14: 1.45439156 | H14: 50－60 | I14: 3.163200495 | K14: 50－60 | L14: 0.7304540722
A15: 2 | B15: 0－10 | C15: 0.5910249888 | D15: 8 | E15: 0－10 | F15: 1.519890724 | G15: 14 | H15: 0－10 | I15: 2.892668851 | J15: 20 | K15: 0－10 | L15: 0.715638327
B16: 10－20 | C16: 0.6009102188 | E16: 10－20 | F16: 1.591668112 | H16: 10－20 | I16: 2.664136082 | K16: 10－20 | L16: 0.7014366637
B17: 20－30 | C17: 0.6111489413 | E17: 20－30 | F17: 1.670660218 | H17: 20－30 | I17: 2.468692423 | K17: 20－30 | L17: 0.6878115086
B18: 30－40 | C18: 0.6217606129 | E18: 30－40 | F18: 1.757996898 | H18: 30－40 | I18: 2.299752149 | K18: 30－40 | L18: 0.6747282878
B19: 40－50 | C19: 0.6327661447 | E19: 40－50 | F19: 1.855053377 | H19: 40－50 | I19: 2.152348393 | K19: 40－50 | L19: 0.6621551346
B20: 50－60 | C20: 0.6441880404 | E20: 50－60 | F20: 1.963519789 | H20: 50－60 | I20: 2.022668546 | K20: 50－60 | L20: 0.6500626303
A21: 3 | B21: 0－10 | C21: 0.6560505508 | D21: 9 | E21: 0－10 | F21: 2.085495531 | G21: 15 | H21: 0－10 | I21: 1.907740038 | J21: 21 | K21: 0－10 | L21: 0.6384235743
B22: 10－20 | C22: 0.6683798459 | E22: 10－20 | F22: 2.22361929 | H22: 10－20 | I22: 1.805212873 | K22: 10－20 | L22: 0.6272127788
B23: 20－30 | C23: 0.6812042083 | E23: 20－30 | F23: 2.381251386 | H23: 20－30 | I23: 1.713206 | K23: 20－30 | L23: 0.6164068871
B24: 30－40 | C24: 0.6945542502 | E24: 30－40 | F24: 2.562734463 | H24: 30－40 | I24: 1.630196779 | K24: 30－40 | L24: 0.60598421
B25: 40－50 | C25: 0.7084631575 | E25: 40－50 | F25: 2.773774406 | H25: 40－50 | I25: 1.554940128 | K25: 40－50 | L25: 0.5959245799
B26: 50－60 | C26: 0.722966965 | E26: 50－60 | F26: 3.022010732 | H26: 50－60 | I26: 1.486408488 | K26: 50－60 | L26: 0.5862092202
A27: 4 | B27: 0－10 | C27: 0.7381048684 | D27: 10 | E27: 0－10 | F27: 3.31789494 | G27: 16 | H27: 0－10 | I27: 1.423746642 | J27: 22 | K27: 0－10 | L27: 0.5768206275
B28: 10－20 | C28: 0.753919577 | E28: 10－20 | F28: 3.676087258 | H28: 10－20 | I28: 1.366237284 | K28: 10－20 | L28: 0.5677424652
B29: 20－30 | C29: 0.7704577147 | E29: 20－30 | F29: 4.117762322 | H29: 20－30 | I29: 1.313274481 | K29: 20－30 | L29: 0.5589594689
B30: 30－40 | C30: 0.7877702781 | E30: 30－40 | F30: 4.674586598 | H30: 30－40 | I30: 1.264343006 | K30: 30－40 | L30: 0.550457359
B31: 40－50 | C31: 0.8059131585 | E31: 40－50 | F31: 5.395950871 | H31: 40－50 | I31: 1.219002081 | K31: 40－50 | L31: 0.5422227634
B32: 50－60 | C32: 0.8249477417 | E32: 50－60 | F32: 6.36299521 | H32: 50－60 | I32: 1.176872484 | K32: 50－60 | L32: 0.5342431461
A33: 5 | B33: 0－10 | C33: 0.8449415968 | D33: 11 | E33: 0－10 | F33: 7.718084308 | G33: 17 | H33: 0－10 | I33: 1.137626226 | J33: 23 | K33: 0－10 | L33: 0.5265067434
B34: 10－20 | C34: 0.8659692712 | E34: 10－20 | F34: 9.733544544 | H34: 10－20 | I34: 1.100978233 | K34: 10－20 | L34: 0.5190025049
B35: 20－30 | C35: 0.8881132111 | E35: 20－30 | F35: 12.99619668 | H35: 20－30 | I35: 1.06667959 | K35: 20－30 | L35: 0.5117200406
B36: 30－40 | C36: 0.9114648304 | E36: 30－40 | F36: 19.0151326 | H36: 30－40 | I36: 1.03451201 | K36: 30－40 | L36: 0.5046495723
B37: 40－50 | C37: 0.9361257579 | E37: 40－50 | F37: 33.02479793 | H37: 40－50 | I37: 1.004283294 | K37: 40－50 | L37: 0.4977818892
B38: 50－60 | C38: 0.9622092964 | E38: 50－60 | F38: 92.98668239 | H38: 50－60 | I38: 0.9758235603 | K38: 50－60 | L38: 0.4911083072

Sheet 流入量定義
A1: ※流出計算を実行する場合、記入する必要はありません。
A2: 時刻 | B2: 行為後流入量
A3: 00:00:00
A4: 00:10:00 | B4: 0
A5: 00:20:00 | B5: 0.0007
A6: 00:30:00 | B6: 0.00072
A7: 00:40:00 | B7: 0.00072
A8: 00:50:00 | B8: 0.00072
A9: 01:00:00 | B9: 0.00075
A10: 01:10:00 | B10: 0.00075
A11: 01:20:00 | B11: 0.00075
A12: 01:30:00 | B12: 0.00078
A13: 01:40:00 | B13: 0.00078
A14: 01:50:00 | B14: 0.00078
A15: 02:00:00 | B15: 0.0008
A16: 02:10:00 | B16: 0.0008
A17: 02:20:00 | B17: 0.00082
A18: 02:30:00 | B18: 0.00082
A19: 02:40:00 | B19: 0.00082
A20: 02:50:00 | B20: 0.00085
A21: 03:00:00 | B21: 0.00085
A22: 03:10:00 | B22: 0.00088
A23: 03:20:00 | B23: 0.00088
A24: 03:30:00 | B24: 0.0009
A25: 03:40:00 | B25: 0.0009
A26: 03:50:00 | B26: 0.00093
A27: 04:00:00 | B27: 0.00093
A28: 04:10:00 | B28: 0.00095
A29: 04:20:00 | B29: 0.00097
A30: 04:30:00 | B30: 0.00097
A31: 04:40:00 | B31: 0.001
A32: 04:50:00 | B32: 0.001
A33: 05:00:00 | B33: 0.00102
A34: 05:10:00 | B34: 0.00105
A35: 05:20:00 | B35: 0.00107
A36: 05:30:00 | B36: 0.00107
A37: 05:40:00 | B37: 0.0011
A38: 05:50:00 | B38: 0.00113
A39: 06:00:00 | B39: 0.00115
A40: 06:10:00 | B40: 0.00118
A41: 06:20:00 | B41: 0.0012
A42: 06:30:00 | B42: 0.00123
A43: 06:40:00 | B43: 0.00125
A44: 06:50:00 | B44: 0.00128
A45: 07:00:00 | B45: 0.0013
A46: 07:10:00 | B46: 0.00135
A47: 07:20:00 | B47: 0.00138
A48: 07:30:00 | B48: 0.0014
A49: 07:40:00 | B49: 0.00145
A50: 07:50:00 | B50: 0.0015
A51: 08:00:00 | B51: 0.00152
A52: 08:10:00 | B52: 0.00158
A53: 08:20:00 | B53: 0.00163
A54: 08:30:00 | B54: 0.00168
A55: 08:40:00 | B55: 0.00175
A56: 08:50:00 | B56: 0.0018
A57: 09:00:00 | B57: 0.00188
A58: 09:10:00 | B58: 0.00195
A59: 09:20:00 | B59: 0.00205
A60: 09:30:00 | B60: 0.00213
A61: 09:40:00 | B61: 0.00225
A62: 09:50:00 | B62: 0.00235
A63: 10:00:00 | B63: 0.00247
A64: 10:10:00 | B64: 0.00265
A65: 10:20:00 | B65: 0.0028
A66: 10:30:00 | B66: 0.00303
A67: 10:40:00 | B67: 0.00325
A68: 10:50:00 | B68: 0.00355
A69: 11:00:00 | B69: 0.0039
A70: 11:10:00 | B70: 0.00435
A71: 11:20:00 | B71: 0.00495
A72: 11:30:00 | B72: 0.00578
A73: 11:40:00 | B73: 0.00698
A74: 11:50:00 | B74: 0.00898
A75: 12:00:00 | B75: 0.01305
A76: 12:10:00 | B76: 0.029
A77: 12:20:00 | B77: 0.0174
A78: 12:30:00 | B78: 0.0106
A79: 12:40:00 | B79: 0.00785
A80: 12:50:00 | B80: 0.00633
A81: 13:00:00 | B81: 0.00533
A82: 13:10:00 | B82: 0.00462
A83: 13:20:00 | B83: 0.00413
A84: 13:30:00 | B84: 0.00372
A85: 13:40:00 | B85: 0.0034
A86: 13:50:00 | B86: 0.00313
A87: 14:00:00 | B87: 0.0029
A88: 14:10:00 | B88: 0.00273
A89: 14:20:00 | B89: 0.00255
A90: 14:30:00 | B90: 0.00243
A91: 14:40:00 | B91: 0.0023
A92: 14:50:00 | B92: 0.00217
A93: 15:00:00 | B93: 0.00208
A94: 15:10:00 | B94: 0.002
A95: 15:20:00 | B95: 0.00192
A96: 15:30:00 | B96: 0.00185
A97: 15:40:00 | B97: 0.00177
A98: 15:50:00 | B98: 0.00173
A99: 16:00:00 | B99: 0.00165
A100: 16:10:00 | B100: 0.0016
A101: 16:20:00 | B101: 0.00155
A102: 16:30:00 | B102: 0.0015
A103: 16:40:00 | B103: 0.00148
A104: 16:50:00 | B104: 0.00143
A105: 17:00:00 | B105: 0.0014
A106: 17:10:00 | B106: 0.00135
A107: 17:20:00 | B107: 0.00132
A108: 17:30:00 | B108: 0.0013
A109: 17:40:00 | B109: 0.00128
A110: 17:50:00 | B110: 0.00123
A111: 18:00:00 | B111: 0.0012
A112: 18:10:00 | B112: 0.00118
A113: 18:20:00 | B113: 0.00115
A114: 18:30:00 | B114: 0.00113
A115: 18:40:00 | B115: 0.00113
A116: 18:50:00 | B116: 0.0011
A117: 19:00:00 | B117: 0.00107
A118: 19:10:00 | B118: 0.00105
A119: 19:20:00 | B119: 0.00102
A120: 19:30:00 | B120: 0.00102
A121: 19:40:00 | B121: 0.001
A122: 19:50:00 | B122: 0.00097
A123: 20:00:00 | B123: 0.00097
A124: 20:10:00 | B124: 0.00095
A125: 20:20:00 | B125: 0.00095
A126: 20:30:00 | B126: 0.00093
A127: 20:40:00 | B127: 0.00093
A128: 20:50:00 | B128: 0.0009
A129: 21:00:00 | B129: 0.0009
A130: 21:10:00 | B130: 0.00088
A131: 21:20:00 | B131: 0.00088
A132: 21:30:00 | B132: 0.00085
A133: 21:40:00 | B133: 0.00085
A134: 21:50:00 | B134: 0.00082
A135: 22:00:00 | B135: 0.00082
A136: 22:10:00 | B136: 0.0008
A137: 22:20:00 | B137: 0.0008
A138: 22:30:00 | B138: 0.0008
A139: 22:40:00 | B139: 0.00078
A140: 22:50:00 | B140: 0.00078
A141: 23:00:00 | B141: 0.00078
A142: 23:10:00 | B142: 0.00075
A143: 23:20:00 | B143: 0.00075
A144: 23:30:00 | B144: 0.00075
A145: 23:40:00 | B145: 0.00072
A146: 23:50:00 | B146: 0.00072
A147: 24:00 | B147: 0

Sheet 01流出計算（Q-Tグラフ）
B2: 流 出 計 算 条 件 | H2: 流 出 計 算 結 果
H4: 時刻 | I4: 行為前流入量 | J4: 行為後流入量 | K4: 降雨強度
B5: 1 | C5: 流出計算の実行 | H5: 00:00:00 | I5: 0 | J5: 0
H6: 00:10:00 | I6: 4e-05 | J6: 0.00017 | K6: 0.4944213587
C7: 行為面積 | D7: =流出係数算出!$H$8 -> 0.148725 | E7: ha | H7: 00:20:00 | I7: 4e-05 | J7: 0.00017 | K7: 0.5011909372
H8: 00:30:00 | I8: 4e-05 | J8: 0.00017 | K8: 0.5081588955
C9: 降雨量 | H9: 00:40:00 | I9: 4e-05 | J9: 0.00018 | K9: 0.5153341759
C10: ※「降雨強度」シートに基準降雨を入力してください。（都道府県知事等により公示されている「基準降雨」の値に変更してください。） | H10: 00:50:00 | I10: 4e-05 | J10: 0.00018 | K10: 0.5227262679
H11: 01:00:00 | I11: 4e-05 | J11: 0.00018 | K11: 0.5303452497
H12: 01:10:00 | I12: 4e-05 | J12: 0.00018 | K12: 0.5382018351
H13: 01:20:00 | I13: 5e-05 | J13: 0.00019 | K13: 0.5463074242
H14: 01:30:00 | I14: 5e-05 | J14: 0.00019 | K14: 0.5546741593
C15: 流出係数 | H15: 01:40:00 | I15: 5e-05 | J15: 0.00019 | K15: 0.5633149859
C16: 行為前 | D16: 0.2 | H16: 01:50:00 | I16: 5e-05 | J16: 0.0002 | K16: 0.5722437206
C17: 行為後 | D17: 0.8257017986 | H17: 02:00:00 | I17: 5e-05 | J17: 0.0002 | K17: 0.5814751252
C18: ※「流出係数算出」シートで算出した諸元が入力されていますが、必要に応じて申請図書記載値に上書きすることができます。 | H18: 02:10:00 | I18: 5e-05 | J18: 0.0002 | K18: 0.5910249888
H19: 02:20:00 | I19: 5e-05 | J19: 0.00021 | K19: 0.6009102188
H20: 02:30:00 | I20: 5e-05 | J20: 0.00021 | K20: 0.6111489413
C21: 流出計算結果の指定 | H21: 02:40:00 | I21: 5e-05 | J21: 0.00021 | K21: 0.6217606129
H22: 02:50:00 | I22: 5e-05 | J22: 0.00022 | K22: 0.6327661447
C23: ※「流入量定義」シートに計算された流出計算結果（行為後）を入力してください。 | H23: 03:00:00 | I23: 5e-05 | J23: 0.00022 | K23: 0.6441880404
H24: 03:10:00 | I24: 5e-05 | J24: 0.00022 | K24: 0.6560505508
H25: 03:20:00 | I25: 6e-05 | J25: 0.00023 | K25: 0.6683798459
H26: 03:30:00 | I26: 6e-05 | J26: 0.00023 | K26: 0.6812042083
C27: 許容放流量 | D27: 0.01 | E27: m3/s | H27: 03:40:00 | I27: 6e-05 | J27: 0.00024 | K27: 0.6945542502
H28: 03:50:00 | I28: 6e-05 | J28: 0.00024 | K28: 0.7084631575
H29: 04:00:00 | I29: 6e-05 | J29: 0.00025 | K29: 0.722966965
H30: 04:10:00 | I30: 6e-05 | J30: 0.00025 | K30: 0.7381048684
H31: 04:20:00 | I31: 6e-05 | J31: 0.00026 | K31: 0.753919577
H32: 04:30:00 | I32: 6e-05 | J32: 0.00026 | K32: 0.7704577147
H33: 04:40:00 | I33: 7e-05 | J33: 0.00027 | K33: 0.7877702781
H34: 04:50:00 | I34: 7e-05 | J34: 0.00028 | K34: 0.8059131585
H35: 05:00:00 | I35: 7e-05 | J35: 0.00028 | K35: 0.8249477417
H36: 05:10:00 | I36: 7e-05 | J36: 0.00029 | K36: 0.8449415968
H37: 05:20:00 | I37: 7e-05 | J37: 0.0003 | K37: 0.8659692712
H38: 05:30:00 | I38: 7e-05 | J38: 0.0003 | K38: 0.8881132111
H39: 05:40:00 | I39: 8e-05 | J39: 0.00031 | K39: 0.9114648304
H40: 05:50:00 | I40: 8e-05 | J40: 0.00032 | K40: 0.9361257579
H41: 06:00:00 | I41: 8e-05 | J41: 0.00033 | K41: 0.9622092964
H42: 06:10:00 | I42: 8e-05 | J42: 0.00034 | K42: 0.989842139
H43: 06:20:00 | I43: 8e-05 | J43: 0.00035 | K43: 1.019166395
H44: 06:30:00 | I44: 9e-05 | J44: 0.00036 | K44: 1.050341994
H45: 06:40:00 | I45: 9e-05 | J45: 0.00037 | K45: 1.083549546
H46: 06:50:00 | I46: 9e-05 | J46: 0.00038 | K46: 1.118993781
H47: 07:00:00 | I47: 0.0001 | J47: 0.00039 | K47: 1.156907674
H48: 07:10:00 | I48: 0.0001 | J48: 0.00041 | K48: 1.197557461
H49: 07:20:00 | I49: 0.0001 | J49: 0.00042 | K49: 1.241248737
H50: 07:30:00 | I50: 0.00011 | J50: 0.00044 | K50: 1.288333956
H51: 07:40:00 | I51: 0.00011 | J51: 0.00046 | K51: 1.339221682
H52: 07:50:00 | I52: 0.00012 | J52: 0.00048 | K52: 1.394388116
H53: 08:00:00 | I53: 0.00012 | J53: 0.0005 | K53: 1.45439156
H54: 08:10:00 | I54: 0.00013 | J54: 0.00052 | K54: 1.519890724
H55: 08:20:00 | I55: 0.00013 | J55: 0.00054 | K55: 1.591668112
H56: 08:30:00 | I56: 0.00014 | J56: 0.00057 | K56: 1.670660218
H57: 08:40:00 | I57: 0.00015 | J57: 0.0006 | K57: 1.757996898
H58: 08:50:00 | I58: 0.00015 | J58: 0.00063 | K58: 1.855053377
H59: 09:00:00 | I59: 0.00016 | J59: 0.00067 | K59: 1.963519789
H60: 09:10:00 | I60: 0.00017 | J60: 0.00071 | K60: 2.085495531
H61: 09:20:00 | I61: 0.00018 | J61: 0.00076 | K61: 2.22361929
H62: 09:30:00 | I62: 0.0002 | J62: 0.00081 | K62: 2.381251386
H63: 09:40:00 | I63: 0.00021 | J63: 0.00087 | K63: 2.562734463
H64: 09:50:00 | I64: 0.00023 | J64: 0.00095 | K64: 2.773774406
H65: 10:00:00 | I65: 0.00025 | J65: 0.00103 | K65: 3.022010732
H66: 10:10:00 | I66: 0.00027 | J66: 0.00113 | K66: 3.31789494
H67: 10:20:00 | I67: 0.0003 | J67: 0.00125 | K67: 3.676087258
H68: 10:30:00 | I68: 0.00034 | J68: 0.00141 | K68: 4.117762322
H69: 10:40:00 | I69: 0.00039 | J69: 0.0016 | K69: 4.674586598
H70: 10:50:00 | I70: 0.00045 | J70: 0.00184 | K70: 5.395950871
H71: 11:00:00 | I71: 0.00053 | J71: 0.00217 | K71: 6.36299521
H72: 11:10:00 | I72: 0.00064 | J72: 0.00263 | K72: 7.718084308
H73: 11:20:00 | I73: 0.0008 | J73: 0.00332 | K73: 9.733544544
H74: 11:30:00 | I74: 0.00107 | J74: 0.00443 | K74: 12.99619668
H75: 11:40:00 | I75: 0.00157 | J75: 0.00649 | K75: 19.0151326
H76: 11:50:00 | I76: 0.00273 | J76: 0.01127 | K76: 33.02479793
H77: 12:00:00 | I77: 0.00768 | J77: 0.03173 | K77: 92.98668239
H78: 12:10:00 | I78: 0.0041 | J78: 0.01693 | K78: 49.59857116
H79: 12:20:00 | I79: 0.00201 | J79: 0.0083 | K79: 24.31333869
H80: 12:30:00 | I80: 0.00128 | J80: 0.00529 | K80: 15.4903764
H81: 12:40:00 | I81: 0.00092 | J81: 0.0038 | K81: 11.1494196
H82: 12:50:00 | I82: 0.00071 | J82: 0.00294 | K82: 8.617613539
H83: 13:00:00 | I83: 0.00058 | J83: 0.00238 | K83: 6.97933275
H84: 13:10:00 | I84: 0.00048 | J84: 0.00199 | K84: 5.841818951
H85: 13:20:00 | I85: 0.00041 | J85: 0.00171 | K85: 5.010611116
H86: 13:30:00 | I86: 0.00036 | J86: 0.00149 | K86: 4.379227533
H87: 13:40:00 | I87: 0.00032 | J87: 0.00133 | K87: 3.884819444
H88: 13:50:00 | I88: 0.00029 | J88: 0.00119 | K88: 3.48806767
H89: 14:00:00 | I89: 0.00026 | J89: 0.00108 | K89: 3.163200495
H90: 14:10:00 | I90: 0.00024 | J90: 0.00099 | K90: 2.892668851
H91: 14:20:00 | I91: 0.00022 | J91: 0.00091 | K91: 2.664136082
H92: 14:30:00 | I92: 0.0002 | J92: 0.00084 | K92: 2.468692423
H93: 14:40:00 | I93: 0.00019 | J93: 0.00078 | K93: 2.299752149
H94: 14:50:00 | I94: 0.00018 | J94: 0.00073 | K94: 2.152348393
H95: 15:00:00 | I95: 0.00017 | J95: 0.00069 | K95: 2.022668546
H96: 15:10:00 | I96: 0.00016 | J96: 0.00065 | K96: 1.907740038
H97: 15:20:00 | I97: 0.00015 | J97: 0.00062 | K97: 1.805212873
H98: 15:30:00 | I98: 0.00014 | J98: 0.00058 | K98: 1.713206
H99: 15:40:00 | I99: 0.00013 | J99: 0.00056 | K99: 1.630196779
H100: 15:50:00 | I100: 0.00013 | J100: 0.00053 | K100: 1.554940128
H101: 16:00:00 | I101: 0.00012 | J101: 0.00051 | K101: 1.486408488
H102: 16:10:00 | I102: 0.00012 | J102: 0.00049 | K102: 1.423746642
H103: 16:20:00 | I103: 0.00011 | J103: 0.00047 | K103: 1.366237284
H104: 16:30:00 | I104: 0.00011 | J104: 0.00045 | K104: 1.313274481
H105: 16:40:00 | I105: 0.0001 | J105: 0.00043 | K105: 1.264343006
H106: 16:50:00 | I106: 0.0001 | J106: 0.00042 | K106: 1.219002081
H107: 17:00:00 | I107: 0.0001 | J107: 0.0004 | K107: 1.176872484
H108: 17:10:00 | I108: 9e-05 | J108: 0.00039 | K108: 1.137626226
H109: 17:20:00 | I109: 9e-05 | J109: 0.00038 | K109: 1.100978233
H110: 17:30:00 | I110: 9e-05 | J110: 0.00036 | K110: 1.06667959
H111: 17:40:00 | I111: 9e-05 | J111: 0.00035 | K111: 1.03451201
H112: 17:50:00 | I112: 8e-05 | J112: 0.00034 | K112: 1.004283294
H113: 18:00:00 | I113: 8e-05 | J113: 0.00033 | K113: 0.9758235603
H114: 18:10:00 | I114: 8e-05 | J114: 0.00032 | K114: 0.9489821183
H115: 18:20:00 | I115: 8e-05 | J115: 0.00032 | K115: 0.9236248415
H116: 18:30:00 | I116: 7e-05 | J116: 0.00031 | K116: 0.8996319644
H117: 18:40:00 | I117: 7e-05 | J117: 0.0003 | K117: 0.8768962185
H118: 18:50:00 | I118: 7e-05 | J118: 0.00029 | K118: 0.8553212506
H119: 19:00:00 | I119: 7e-05 | J119: 0.00028 | K119: 0.8348202748
H120: 19:10:00 | I120: 7e-05 | J120: 0.00028 | K120: 0.8153149179
H121: 19:20:00 | I121: 7e-05 | J121: 0.00027 | K121: 0.7967342284
H122: 19:30:00 | I122: 6e-05 | J122: 0.00027 | K122: 0.7790138213
H123: 19:40:00 | I123: 6e-05 | J123: 0.00026 | K123: 0.7620951382
H124: 19:50:00 | I124: 6e-05 | J124: 0.00025 | K124: 0.7459248049
H125: 20:00:00 | I125: 6e-05 | J125: 0.00025 | K125: 0.7304540722
H126: 20:10:00 | I126: 6e-05 | J126: 0.00024 | K126: 0.715638327
H127: 20:20:00 | I127: 6e-05 | J127: 0.00024 | K127: 0.7014366637
H128: 20:30:00 | I128: 6e-05 | J128: 0.00023 | K128: 0.6878115086
H129: 20:40:00 | I129: 6e-05 | J129: 0.00023 | K129: 0.6747282878
H130: 20:50:00 | I130: 5e-05 | J130: 0.00023 | K130: 0.6621551346
H131: 21:00:00 | I131: 5e-05 | J131: 0.00022 | K131: 0.6500626303
H132: 21:10:00 | I132: 5e-05 | J132: 0.00022 | K132: 0.6384235743
H133: 21:20:00 | I133: 5e-05 | J133: 0.00021 | K133: 0.6272127788
H134: 21:30:00 | I134: 5e-05 | J134: 0.00021 | K134: 0.6164068871
H135: 21:40:00 | I135: 5e-05 | J135: 0.00021 | K135: 0.60598421
H136: 21:50:00 | I136: 5e-05 | J136: 0.0002 | K136: 0.5959245799
H137: 22:00:00 | I137: 5e-05 | J137: 0.0002 | K137: 0.5862092202
H138: 22:10:00 | I138: 5e-05 | J138: 0.0002 | K138: 0.5768206275
H139: 22:20:00 | I139: 5e-05 | J139: 0.00019 | K139: 0.5677424652
H140: 22:30:00 | I140: 5e-05 | J140: 0.00019 | K140: 0.5589594689
H141: 22:40:00 | I141: 5e-05 | J141: 0.00019 | K141: 0.550457359
H142: 22:50:00 | I142: 4e-05 | J142: 0.00019 | K142: 0.5422227634
H143: 23:00:00 | I143: 4e-05 | J143: 0.00018 | K143: 0.5342431461
H144: 23:10:00 | I144: 4e-05 | J144: 0.00018 | K144: 0.5265067434
H145: 23:20:00 | I145: 4e-05 | J145: 0.00018 | K145: 0.5190025049
H146: 23:30:00 | I146: 4e-05 | J146: 0.00017 | K146: 0.5117200406
H147: 23:40:00 | I147: 4e-05 | J147: 0.00017 | K147: 0.5046495723
H148: 23:50:00 | I148: 4e-05 | J148: 0.00017 | K148: 0.4977818892
H149: 1 | I149: 4e-05 | J149: 0.00017 | K149: 0.4911083072

Sheet 浸透施設能力
B2: 浸透施設能力算定結果 | M2: 空隙貯留量算定結果
B3: 浸透マス | C3: 浸透トレンチ | E3: 透水性舗装 | F3: その他 | G3: 浸透施設能力算定結果 | M3: 浸透マス | N3: 浸透トレンチ | P3: 透水性舗装 | Q3: その他 | R3: 空隙貯留量算定結果
B4: =SUM(I11:J20) -> 8.310626554 | C4: =SUM(J25:J34) -> 0 | E4: =SUM(J39:J48) -> 0 | F4: =SUM(J53:J62) -> 0 | G4: =B4+C4+E4+F4 -> 8.310626554 | H4: ｍ3/ｈｒ | M4: =SUM(K11:K20)/100 -> 31.6432 | N4: =SUM(K25:K34)/100 -> 0 | P4: =SUM(K39:K48)/100 -> 0 | Q4: =SUM(K53:K62)/100 -> 0 | R4: =M4+N4+P4+Q4 -> 31.6432 | S4: ｍ3
G5: =G4/3600 -> 0.002308507376 | H5: ｍ3/s
B7: 条件設定 | M7: 条件設定
B8: 【浸透マス】 | C8: 単位設計浸透能（ｍ3/ｈｒ/個） | E8: 設置数量 （個） | F8: 影響係数 | M8: 【浸透マス】 | N8: 体積 （ｍ3） | O8: 空隙率 （％）
C9: 比浸透量（㎡） | D9: 飽和透水係数 （m/hr） | F9: （1） | G9: （2） | H9: （3）
F10: 内容（１） | G10: 内容（２） | H10: 内容（３）
B11: 1 | C11: 60.7632 | D11: 0.034999068 | E11: 3 | F11: 0.9 | G11: 0.9 | H11: 1 | J11: =$C11*$D11*$E11*$F11*$G11*$H11 -> 5.167772546 | K11: =$N11*O11 -> 2200 | M11: 1 | N11: 22 | O11: 100
B12: 2 | C12: 55.431 | D12: 0.034999068 | E12: 2 | F12: 0.9 | G12: 0.9 | H12: 1 | J12: =$C12*$D12*$E12*$F12*$G12*$H12 -> 3.142854008 | K12: =$N12*O12 -> 964.32 | M12: 2 | N12: 9.6432 | O12: 100
B13: 3 | F13: 0.9 | G13: 0.9 | H13: 1 | J13: 0 | K13: 0 | M13: 3
B14: 4 | F14: 0.9 | G14: 0.9 | H14: 1 | J14: 0 | K14: 0 | M14: 4
B15: 5 | F15: 1 | G15: 1 | H15: 1 | J15: 0 | K15: 0 | M15: 5
B16: 6 | F16: 1 | G16: 1 | H16: 1 | J16: 0 | K16: 0 | M16: 6
B17: 7 | F17: 1 | G17: 1 | H17: 1 | J17: 0 | K17: 0 | M17: 7
B18: 8 | F18: 1 | G18: 1 | H18: 1 | J18: 0 | K18: 0 | M18: 8
B19: 9 | F19: 1 | G19: 1 | H19: 1 | J19: 0 | K19: 0 | M19: 9
B20: 10 | F20: 1 | G20: 1 | H20: 1 | J20: 0 | K20: 0 | M20: 10
B22: 【浸透トレンチ】 | C22: 単位設計浸透能（ｍ3/ｈｒ/m） | E22: 設置数量 （ｍ） | F22: 影響係数 | M22: 【浸透トレンチ】 | N22: 体積 （ｍ3） | O22: 空隙率 （％）
C23: 比浸透量（㎡） | D23: 飽和透水係数 （m/hr） | F23: （1） | G23: （2） | H23: （3）
F24: 内容（１） | G24: 内容（２） | H24: 内容（３）
B25: 1 | F25: 1 | G25: 1 | H25: 1 | J25: =$C25*$D25*$E25*$F25*$G25*$H25 -> 0 | K25: =$N25*O25 -> 0 | M25: 1
B26: 2 | F26: 1 | G26: 1 | H26: 1 | J26: =$C26*$D26*$E26*$F26*$G26*$H26 -> 0 | K26: 0 | M26: 2
B27: 3 | F27: 1 | G27: 1 | H27: 1 | J27: 0 | K27: 0 | M27: 3
B28: 4 | F28: 1 | G28: 1 | H28: 1 | J28: 0 | K28: 0 | M28: 4
B29: 5 | F29: 1 | G29: 1 | H29: 1 | J29: 0 | K29: 0 | M29: 5
B30: 6 | F30: 1 | G30: 1 | H30: 1 | J30: 0 | K30: 0 | M30: 6
B31: 7 | F31: 1 | G31: 1 | H31: 1 | J31: 0 | K31: 0 | M31: 7
B32: 8 | F32: 1 | G32: 1 | H32: 1 | J32: 0 | K32: 0 | M32: 8
B33: 9 | F33: 1 | G33: 1 | H33: 1 | J33: 0 | K33: 0 | M33: 9
B34: 10 | F34: 1 | G34: 1 | H34: 1 | J34: 0 | K34: 0 | M34: 10
B36: 【透水性舗装】 | C36: 単位設計浸透能（ｍ3/ｈｒ/㎡） | E36: 設置数量 （㎡） | F36: 影響係数 | M36: 【透水性塗装】 | N36: 体積 （ｍ3） | O36: 空隙率 （％）
C37: 比浸透量（㎡） | D37: 飽和透水係数 （m/hr） | F37: （1） | G37: （2） | H37: （3）
F38: 内容（１） | G38: 内容（２） | H38: 内容（３）
B39: 1 | F39: 1 | G39: 1 | H39: 1 | J39: =$C39*$D39*$E39*$F39*$G39*$H39 -> 0 | K39: =$N39*O39 -> 0 | M39: 1
B40: 2 | F40: 1 | G40: 1 | H40: 1 | J40: =$C40*$D40*$E40*$F40*$G40*$H40 -> 0 | K40: =$N40*O40 -> 0 | M40: 2
B41: 3 | F41: 1 | G41: 1 | H41: 1 | J41: 0 | K41: 0 | M41: 3
B42: 4 | F42: 1 | G42: 1 | H42: 1 | J42: 0 | K42: 0 | M42: 4
B43: 5 | F43: 1 | G43: 1 | H43: 1 | J43: 0 | K43: 0 | M43: 5
B44: 6 | F44: 1 | G44: 1 | H44: 1 | J44: 0 | K44: 0 | M44: 6
B45: 7 | F45: 1 | G45: 1 | H45: 1 | J45: 0 | K45: 0 | M45: 7
B46: 8 | F46: 1 | G46: 1 | H46: 1 | J46: 0 | K46: 0 | M46: 8
B47: 9 | F47: 1 | G47: 1 | H47: 1 | J47: 0 | K47: 0 | M47: 9
B48: 10 | F48: 1 | G48: 1 | H48: 1 | J48: 0 | K48: 0 | M48: 10
B50: 【その他】 | C50: 単位設計浸透能（ｍ3/ｈｒ/単位） | E50: 設置数量 （単位） | F50: 影響係数 | M50: 【その他】 | N50: 体積 （ｍ3） | O50: 空隙率 （％）
C51: 比浸透量（㎡） | D51: 飽和透水係数 （m/hr） | F51: （1） | G51: （2） | H51: （3）
F52: 内容（１） | G52: 内容（２） | H52: 内容（３）
B53: 1 | F53: 1 | G53: 1 | H53: 1 | J53: =$C53*$D53*$E53*$F53*$G53*$H53 -> 0 | K53: =$N53*O53 -> 0 | M53: 1
B54: 2 | F54: 1 | G54: 1 | H54: 1 | J54: 0 | K54: 0 | M54: 2
B55: 3 | F55: 1 | G55: 1 | H55: 1 | J55: 0 | K55: 0 | M55: 3
B56: 4 | F56: 1 | G56: 1 | H56: 1 | J56: 0 | K56: 0 | M56: 4
B57: 5 | F57: 1 | G57: 1 | H57: 1 | J57: 0 | K57: 0 | M57: 5
B58: 6 | F58: 1 | G58: 1 | H58: 1 | J58: 0 | K58: 0 | M58: 6
B59: 7 | F59: 1 | G59: 1 | H59: 1 | J59: 0 | K59: 0 | M59: 7
B60: 8 | F60: 1 | G60: 1 | H60: 1 | J60: 0 | K60: 0 | M60: 8
B61: 9 | F61: 1 | G61: 1 | H61: 1 | J61: 0 | K61: 0 | M61: 9
B62: 10 | F62: 1 | G62: 1 | H62: 1 | J62: 0 | K62: 0 | M62: 10

Sheet 浸透施設能力（貯留浸透モデル_道路管理者用）
A2: 透水性舗装 | H2: 部分を入力して下さい
B4: 基本諸元
B5: 設置数量(舗装面積) (m2) | D5: 3000
B6: 飽和透水係数 （m/hr） | D6: 0.0072 | G6: 上層路盤での貯留率(%) | I6: =L17 -> 12.5
B7: 比浸透量算定定数 K=aH+b | C7: a | D7: 0.014 | G7: 下層路盤での貯留率(%) | I7: =L18 -> 4.5
C8: b | D8: 1.287 | G8: 下層路盤厚(mm) | I8: =D18 -> 400
B9: 目詰まり 係数 | C9: C1 | D9: 0.9 | G9: 下層路盤での貯留量(mm) | I9: =M18 -> 18
C10: C2 | D10: 0.9 | G10: 貯留量の合計(mm) | I10: =M19 -> 55.5
B12: 貯留率と水拘束率
D13: 厚さ(mm) | E13: 空気間隙率 (%) | F13: 空気間隙率との関係 | G13: 水拘束率 (%) | H13: 水拘束量 (mm) | I13: 貯留率 (%) | J13: 貯留量 (mm) | L13: STEP2での 貯留率 (%) | M13: STEP2での 貯留量 (mm)
B14: 関係式 | D14: a | E14: b | F14: b' | G14: c | H14: a×c/100 | I14: d (=b+b') | J14: a×d/100 | L14: d-c | M14: a×(d-c)/100
B15: 表層 | D15: 50 | E15: 20 | F15: -6 | G15: 1.5 | H15: =D15*G15/100 -> 0.75 | I15: =E15+F15 -> 14 | J15: =D15*I15/100 -> 7 | L15: =I15-G15 -> 12.5 | M15: =D15*(I15-G15)/100 -> 6.25
B16: 中間層・基層 | D16: 100 | E16: 20 | F16: -6 | G16: 1.5 | H16: =D16*G16/100 -> 1.5 | I16: =E16+F16 -> 14 | J16: =D16*I16/100 -> 14 | L16: =I16-G16 -> 12.5 | M16: =D16*(I16-G16)/100 -> 12.5
B17: 上層路盤 | D17: 150 | E17: 20 | F17: -6 | G17: 1.5 | H17: =D17*G17/100 -> 2.25 | I17: =E17+F17 -> 14 | J17: =D17*I17/100 -> 21 | L17: =I17-G17 -> 12.5 | M17: =D17*(I17-G17)/100 -> 18.75
B18: 下層路盤 | D18: 400 | E18: 8 | F18: -3 | G18: 0.5 | H18: =D18*G18/100 -> 2 | I18: =E18+F18 -> 5 | J18: =D18*I18/100 -> 20 | L18: =I18-G18 -> 4.5 | M18: =D18*(I18-G18)/100 -> 18
B19: 合計 | D19: =SUM(D15:D18) -> 700 | E19: - | F19: - | G19: - | H19: =SUM(H15:H18) -> 6.5 | I19: - | J19: =SUM(J15:J18) -> 62 | L19: - | M19: =SUM(M15:M18) -> 55.5
A21: 浸透マス・トレンチ
B23: 浸透能諸元 | K23: 空隙貯留諸元
B24: 【浸透マス】 | D24: 単位設計浸透能（ｍ3/ｈｒ/個） | F24: 設置数量 （個） | G24: 設計水頭 (m) | H24: 影響係数 | K24: 【浸透 マス】 | L24: 体積 （ｍ3） | M24: 空隙率 （％） | P24: Σ | Q24: 設計浸透量 | R24: 平均設計水頭 | S24: 設計空隙貯留量
D25: 比浸透量（㎡） | E25: 飽和透水係数 （m/hr） | H25: 地下水位 係数 | I25: 目詰まり 係数
O26: 小計
B27: 1 | D27: 10 | E27: 0.0072 | F27: 10 | G27: 0.8 | H27: 1 | I27: 1 | K27: 1 | L27: 500 | M27: 20 | P27: =D27*E27*F27*G27*H27*I27 -> 0.576 | Q27: =D27*E27*F27*H27*I27 -> 0.72 | S27: =L27*M27/100 -> 100
B28: 2 | H28: 1 | I28: 1 | K28: 2 | P28: =D28*E28*F28*G28*H28*I28 -> 0 | Q28: =D28*E28*F28*H28*I28 -> 0 | S28: =L28*M28/100 -> 0
B29: 3 | H29: 1 | I29: 1 | K29: 3 | P29: 0 | Q29: 0 | S29: 0
B30: 4 | H30: 1 | I30: 1 | K30: 4 | P30: 0 | Q30: 0 | S30: 0
B31: 5 | H31: 1 | I31: 1 | K31: 5 | P31: 0 | Q31: 0 | S31: 0
B32: 6 | H32: 1 | I32: 1 | K32: 6 | P32: 0 | Q32: 0 | S32: 0
B33: 7 | H33: 1 | I33: 1 | K33: 7 | P33: 0 | Q33: 0 | S33: 0
B34: 8 | H34: 1 | I34: 1 | K34: 8 | P34: 0 | Q34: 0 | S34: 0
B35: 9 | H35: 1 | I35: 1 | K35: 9 | P35: 0 | Q35: 0 | S35: 0
B36: 10 | H36: 1 | I36: 1 | K36: 10 | P36: 0 | Q36: 0 | S36: 0
B38: 【浸透トレンチ】 | D38: 単位設計浸透能（ｍ3/ｈｒ/m） | F38: 設置数量 （ｍ） | G38: 設計水頭 (m) | H38: 影響係数 | K38: 【浸透 トレンチ】 | L38: 体積 （ｍ3） | M38: 空隙率 （％）
D39: 比浸透量（㎡） | E39: 飽和透水係数 （m/hr） | H39: 地下水位 係数 | I39: 目詰まり 係数
B41: 1 | H41: 1 | I41: 1 | K41: 1 | P41: =D41*E41*F41*G41*H41*I41 -> 0 | Q41: =D41*E41*F41*H41*I41 -> 0 | S41: =L41*M41/100 -> 0
B42: 2 | H42: 1 | I42: 1 | K42: 2 | P42: =D42*E42*F42*G42*H42*I42 -> 0 | Q42: =D42*E42*F42*H42*I42 -> 0 | S42: 0
B43: 3 | H43: 1 | I43: 1 | K43: 3 | P43: 0 | Q43: 0 | S43: 0
B44: 4 | H44: 1 | I44: 1 | K44: 4 | P44: 0 | Q44: 0 | S44: 0
B45: 5 | H45: 1 | I45: 1 | K45: 5 | P45: 0 | Q45: 0 | S45: 0
B46: 6 | H46: 1 | I46: 1 | K46: 6 | P46: 0 | Q46: 0 | S46: 0
B47: 7 | H47: 1 | I47: 1 | K47: 7 | P47: 0 | Q47: 0 | S47: 0
B48: 8 | H48: 1 | I48: 1 | K48: 8 | P48: 0 | Q48: 0 | S48: 0
B49: 9 | H49: 1 | I49: 1 | K49: 9 | P49: 0 | Q49: 0 | S49: 0
B50: 10 | H50: 1 | I50: 1 | K50: 10 | P50: 0 | Q50: 0 | S50: 0
B52: 統合諸元
B53: 設計浸透能(m3/hr) | D53: =Q55 -> 0.72
B54: 平均設計水頭(m) | D54: =IF(D53>0,+R55,0) -> 0.8
B55: 設計空隙貯留量(m3) | D55: =S55 -> 100 | O55: 総合計 | P55: =P57+P58 -> 0.576 | Q55: =Q57+Q58 -> 0.72 | R55: =P55/Q55 -> 0.8 | S55: =S57+S58 -> 100
O57: マス | P57: =SUM(P27:P36) -> 0.576 | Q57: =SUM(Q27:Q36) -> 0.72 | R57: =P57/Q57 -> 0.8 | S57: =SUM(S27:S36) -> 100
O58: トレンチ | P58: =SUM(P41:P50) -> 0 | Q58: =SUM(Q41:Q50) -> 0 | R58: =P58/Q58 ->  | S58: =SUM(S41:S50) -> 0

Sheet 02流出計算（QT-Sグラフ）
B2: 流 出 計 算 条 件 | H2: 流 出 計 算 結 果
H4: 時刻 | I4: 浸透考慮前 | J4: 浸透考慮後
B5: 2 | C5: 浸透施設なし | H5: 00:00:00 | I5: 0 | J5: 0
H6: 00:10:00 | I6: 0.00017 | J6: 0
C7: 浸透施設あり | H7: 00:20:00 | I7: 0.00017 | J7: 0
C8: ※「浸透施設能力」シートに浸透施設諸元を入力してください。 | H8: 00:30:00 | I8: 0.00017 | J8: 0
H9: 00:40:00 | I9: 0.00018 | J9: 0
H10: 00:50:00 | I10: 0.00018 | J10: 0
C11: 浸透施設あり | H11: 01:00:00 | I11: 0.00018 | J11: 0
C12: （貯留浸透モデル_道路管理者用） | H12: 01:10:00 | I12: 0.00018 | J12: 0
C13: ※「浸透施設能力（貯留浸透モデル_道路管理者用）」シートに浸透施設諸元を入力してください。 | H13: 01:20:00 | I13: 0.00019 | J13: 0
H14: 01:30:00 | I14: 0.00019 | J14: 0
H15: 01:40:00 | I15: 0.00019 | J15: 0
H16: 01:50:00 | I16: 0.0002 | J16: 0
H17: 02:00:00 | I17: 0.0002 | J17: 0
H18: 02:10:00 | I18: 0.0002 | J18: 0
H19: 02:20:00 | I19: 0.00021 | J19: 0
H20: 02:30:00 | I20: 0.00021 | J20: 0
H21: 02:40:00 | I21: 0.00021 | J21: 0
H22: 02:50:00 | I22: 0.00022 | J22: 0
H23: 03:00:00 | I23: 0.00022 | J23: 0
H24: 03:10:00 | I24: 0.00022 | J24: 0
H25: 03:20:00 | I25: 0.00023 | J25: 0
H26: 03:30:00 | I26: 0.00023 | J26: 0
H27: 03:40:00 | I27: 0.00024 | J27: 0
H28: 03:50:00 | I28: 0.00024 | J28: 0
H29: 04:00:00 | I29: 0.00025 | J29: 0
H30: 04:10:00 | I30: 0.00025 | J30: 0
H31: 04:20:00 | I31: 0.00026 | J31: 0
H32: 04:30:00 | I32: 0.00026 | J32: 0
H33: 04:40:00 | I33: 0.00027 | J33: 0
H34: 04:50:00 | I34: 0.00028 | J34: 0
H35: 05:00:00 | I35: 0.00028 | J35: 0
H36: 05:10:00 | I36: 0.00029 | J36: 0
H37: 05:20:00 | I37: 0.0003 | J37: 0
H38: 05:30:00 | I38: 0.0003 | J38: 0
H39: 05:40:00 | I39: 0.00031 | J39: 0
H40: 05:50:00 | I40: 0.00032 | J40: 0
H41: 06:00:00 | I41: 0.00033 | J41: 0
H42: 06:10:00 | I42: 0.00034 | J42: 0
H43: 06:20:00 | I43: 0.00035 | J43: 0
H44: 06:30:00 | I44: 0.00036 | J44: 0
H45: 06:40:00 | I45: 0.00037 | J45: 0
H46: 06:50:00 | I46: 0.00038 | J46: 0
H47: 07:00:00 | I47: 0.00039 | J47: 0
H48: 07:10:00 | I48: 0.00041 | J48: 0
H49: 07:20:00 | I49: 0.00042 | J49: 0
H50: 07:30:00 | I50: 0.00044 | J50: 0
H51: 07:40:00 | I51: 0.00046 | J51: 0
H52: 07:50:00 | I52: 0.00048 | J52: 0
H53: 08:00:00 | I53: 0.0005 | J53: 0
H54: 08:10:00 | I54: 0.00052 | J54: 0
H55: 08:20:00 | I55: 0.00054 | J55: 0
H56: 08:30:00 | I56: 0.00057 | J56: 0
H57: 08:40:00 | I57: 0.0006 | J57: 0
H58: 08:50:00 | I58: 0.00063 | J58: 0
H59: 09:00:00 | I59: 0.00067 | J59: 0
H60: 09:10:00 | I60: 0.00071 | J60: 0
H61: 09:20:00 | I61: 0.00076 | J61: 0
H62: 09:30:00 | I62: 0.00081 | J62: 0
H63: 09:40:00 | I63: 0.00087 | J63: 0
H64: 09:50:00 | I64: 0.00095 | J64: 0
H65: 10:00:00 | I65: 0.00103 | J65: 0
H66: 10:10:00 | I66: 0.00113 | J66: 0
H67: 10:20:00 | I67: 0.00125 | J67: 0
H68: 10:30:00 | I68: 0.00141 | J68: 0
H69: 10:40:00 | I69: 0.0016 | J69: 0
H70: 10:50:00 | I70: 0.00184 | J70: 0
H71: 11:00:00 | I71: 0.00217 | J71: 0
H72: 11:10:00 | I72: 0.00263 | J72: 0
H73: 11:20:00 | I73: 0.00332 | J73: 0
H74: 11:30:00 | I74: 0.00443 | J74: 0
H75: 11:40:00 | I75: 0.00649 | J75: 0
H76: 11:50:00 | I76: 0.01127 | J76: 0
H77: 12:00:00 | I77: 0.03173 | J77: 0
H78: 12:10:00 | I78: 0.01693 | J78: 0.007899
H79: 12:20:00 | I79: 0.0083 | J79: 0.005991
H80: 12:30:00 | I80: 0.00529 | J80: 0.002981
H81: 12:40:00 | I81: 0.0038 | J81: 0.001491
H82: 12:50:00 | I82: 0.00294 | J82: 0.000631
H83: 13:00:00 | I83: 0.00238 | J83: 7.1e-05
H84: 13:10:00 | I84: 0.00199 | J84: 0
H85: 13:20:00 | I85: 0.00171 | J85: 0
H86: 13:30:00 | I86: 0.00149 | J86: 0
H87: 13:40:00 | I87: 0.00133 | J87: 0
H88: 13:50:00 | I88: 0.00119 | J88: 0
H89: 14:00:00 | I89: 0.00108 | J89: 0
H90: 14:10:00 | I90: 0.00099 | J90: 0
H91: 14:20:00 | I91: 0.00091 | J91: 0
H92: 14:30:00 | I92: 0.00084 | J92: 0
H93: 14:40:00 | I93: 0.00078 | J93: 0
H94: 14:50:00 | I94: 0.00073 | J94: 0
H95: 15:00:00 | I95: 0.00069 | J95: 0
H96: 15:10:00 | I96: 0.00065 | J96: 0
H97: 15:20:00 | I97: 0.00062 | J97: 0
H98: 15:30:00 | I98: 0.00058 | J98: 0
H99: 15:40:00 | I99: 0.00056 | J99: 0
H100: 15:50:00 | I100: 0.00053 | J100: 0
H101: 16:00:00 | I101: 0.00051 | J101: 0
H102: 16:10:00 | I102: 0.00049 | J102: 0
H103: 16:20:00 | I103: 0.00047 | J103: 0
H104: 16:30:00 | I104: 0.00045 | J104: 0
H105: 16:40:00 | I105: 0.00043 | J105: 0
H106: 16:50:00 | I106: 0.00042 | J106: 0
H107: 17:00:00 | I107: 0.0004 | J107: 0
H108: 17:10:00 | I108: 0.00039 | J108: 0
H109: 17:20:00 | I109: 0.00038 | J109: 0
H110: 17:30:00 | I110: 0.00036 | J110: 0
H111: 17:40:00 | I111: 0.00035 | J111: 0
H112: 17:50:00 | I112: 0.00034 | J112: 0
H113: 18:00:00 | I113: 0.00033 | J113: 0
H114: 18:10:00 | I114: 0.00032 | J114: 0
H115: 18:20:00 | I115: 0.00032 | J115: 0
H116: 18:30:00 | I116: 0.00031 | J116: 0
H117: 18:40:00 | I117: 0.0003 | J117: 0
H118: 18:50:00 | I118: 0.00029 | J118: 0
H119: 19:00:00 | I119: 0.00028 | J119: 0
H120: 19:10:00 | I120: 0.00028 | J120: 0
H121: 19:20:00 | I121: 0.00027 | J121: 0
H122: 19:30:00 | I122: 0.00027 | J122: 0
H123: 19:40:00 | I123: 0.00026 | J123: 0
H124: 19:50:00 | I124: 0.00025 | J124: 0
H125: 20:00:00 | I125: 0.00025 | J125: 0
H126: 20:10:00 | I126: 0.00024 | J126: 0
H127: 20:20:00 | I127: 0.00024 | J127: 0
H128: 20:30:00 | I128: 0.00023 | J128: 0
H129: 20:40:00 | I129: 0.00023 | J129: 0
H130: 20:50:00 | I130: 0.00023 | J130: 0
H131: 21:00:00 | I131: 0.00022 | J131: 0
H132: 21:10:00 | I132: 0.00022 | J132: 0
H133: 21:20:00 | I133: 0.00021 | J133: 0
H134: 21:30:00 | I134: 0.00021 | J134: 0
H135: 21:40:00 | I135: 0.00021 | J135: 0
H136: 21:50:00 | I136: 0.0002 | J136: 0
H137: 22:00:00 | I137: 0.0002 | J137: 0
H138: 22:10:00 | I138: 0.0002 | J138: 0
H139: 22:20:00 | I139: 0.00019 | J139: 0
H140: 22:30:00 | I140: 0.00019 | J140: 0
H141: 22:40:00 | I141: 0.00019 | J141: 0
H142: 22:50:00 | I142: 0.00019 | J142: 0
H143: 23:00:00 | I143: 0.00018 | J143: 0
H144: 23:10:00 | I144: 0.00018 | J144: 0
H145: 23:20:00 | I145: 0.00018 | J145: 0
H146: 23:30:00 | I146: 0.00017 | J146: 0
H147: 23:40:00 | I147: 0.00017 | J147: 0
H148: 23:50:00 | I148: 0.00017 | J148: 0
H149: 1 | I149: 0.00017 | J149: 0

Sheet 03-①調整池容量の概算
A1: ※①自然調節方式により調整地容量を概算する場合に入力してください
B3: 入 力 条 件
C5: 行為後ピーク流入量 | E5: =MAX('02流出計算（QT-Sグラフ）'!$J$5:$J$149) -> 0.007899 | F5: m3/s
C6: （浸透考慮後）
B8: 調整池諸元
C9: 許容放流量 | E9: =MAX('01流出計算（Q-Tグラフ）'!$I$5:$I$149) -> 0.00768 | F9: m3/s | I9: 概 算 結 果
C10: （行為前ピーク流入量）
J11: 必要容量 | K11: 10 | L11: m3/ha
C12: 調整池高 | E12: 1 | F12: m
B14: 浸透施設条件 | D14: =IF('02流出計算（QT-Sグラフ）'!$B$5=1,"浸透施設なし",IF('02流出計算（QT-Sグラフ）'!$B$5=2,"浸透施設あり","浸透施設あり（貯留浸透モデル_道路管理者用）")) -> 浸透施設あり | G14: ='02流出計算（QT-Sグラフ）'!$B$5 -> 2 | J14: オリフィス径（円管、直径） | K14: 0.061 | L14: m

Sheet 04-①調節計算（自然調節方式）
B2: 入 力 条 件
B4: 設 定 調 整 池 諸 元 | K4: 行 為 後 流 入 量 | U4: 計 算 結 果 （時 系 列）
B6: 水深-容量 | G6: 放流口形状 | K6: 行為後ピーク流入量 | M6: =MAX('02流出計算（QT-Sグラフ）'!$J$5:$J$149) -> 0.007899 | N6: m3/s | U6: 時刻 | V6: 行為後流入量 | W6: 浸透考慮後流入量 | X6: 許容放流量 | Y6: 調節後放流量 | Z6: 調整池水位
B7: No | C7: 水深H（m） | D7: 容量V（m3） | G7: （口径） | K7: （浸透考慮後） | U7: 00:00:00 | V7: 0 | W7: 0 | X7: 0.00768 | Y7: 0 | Z7: 0
B8: 1 | C8: 0 | D8: 0 | F8: 1 | U8: 00:10:00 | V8: 0.00017 | W8: 0 | X8: 0.00768 | Y8: 0 | Z8: 0
B9: 2 | C9: 2 | D9: 200 | G9: 直径 | H9: 0.162 | I9: m | K9: 許容放流量 | M9: =MAX('01流出計算（Q-Tグラフ）'!$I$5:$I$149) -> 0.00768 | N9: m3/s | U9: 00:20:00 | V9: 0.00017 | W9: 0 | X9: 0.00768 | Y9: 0 | Z9: 0
B10: 3 | K10: （行為前ピーク流入量） | U10: 00:30:00 | V10: 0.00017 | W10: 0 | X10: 0.00768 | Y10: 0 | Z10: 0
B11: 4 | P11: 計 算 結 果 | U11: 00:40:00 | V11: 0.00018 | W11: 0 | X11: 0.00768 | Y11: 0 | Z11: 0
B12: 5 | G12: 高さ | H12: 0.3 | I12: m | U12: 00:50:00 | V12: 0.00018 | W12: 0 | X12: 0.00768 | Y12: 0 | Z12: 0
B13: 6 | G13: 幅 | H13: 0.09 | I13: m | U13: 01:00:00 | V13: 0.00018 | W13: 0 | X13: 0.00768 | Y13: 0 | Z13: 0
B14: 7 | P14: 総合評価 | R14: O.K | U14: 01:10:00 | V14: 0.00018 | W14: 0 | X14: 0.00768 | Y14: 0 | Z14: 0
B15: 8 | G15: （管底位置） | U15: 01:20:00 | V15: 0.00019 | W15: 0 | X15: 0.00768 | Y15: 0 | Z15: 0
B16: 9 | G16: 池底高から | H16: 0 | I16: m | P16: 放流量評価 | R16: 許容放流量以下 | U16: 01:30:00 | V16: 0.00019 | W16: 0 | X16: 0.00768 | Y16: 0 | Z16: 0
B17: 10 | U17: 01:40:00 | V17: 0.00019 | W17: 0 | X17: 0.00768 | Y17: 0 | Z17: 0
B18: 11 | P18: 池の容量不足 | R18: 無 | U18: 01:50:00 | V18: 0.0002 | W18: 0 | X18: 0.00768 | Y18: 0 | Z18: 0
B19: 12 | U19: 02:00:00 | V19: 0.0002 | W19: 0 | X19: 0.00768 | Y19: 0 | Z19: 0
B20: 13 | U20: 02:10:00 | V20: 0.0002 | W20: 0 | X20: 0.00768 | Y20: 0 | Z20: 0
B21: 14 | P21: 最大放流量 | R21: 0.003642414698 | S21: m3/s | U21: 02:20:00 | V21: 0.00021 | W21: 0 | X21: 0.00768 | Y21: 0 | Z21: 0
B22: 15 | U22: 02:30:00 | V22: 0.00021 | W22: 0 | X22: 0.00768 | Y22: 0 | Z22: 0
B23: 16 | P23: 池内最大水深 | R23: 0.05842722735 | S23: m | U23: 02:40:00 | V23: 0.00021 | W23: 0 | X23: 0.00768 | Y23: 0 | Z23: 0
B24: 17 | U24: 02:50:00 | V24: 0.00022 | W24: 0 | X24: 0.00768 | Y24: 0 | Z24: 0
B25: 18 | P25: 池内最大ボリューム | R25: 5.842722735 | S25: m3 | U25: 03:00:00 | V25: 0.00022 | W25: 0 | X25: 0.00768 | Y25: 0 | Z25: 0
B26: 19 | U26: 03:10:00 | V26: 0.00022 | W26: 0 | X26: 0.00768 | Y26: 0 | Z26: 0
B27: 20 | U27: 03:20:00 | V27: 0.00023 | W27: 0 | X27: 0.00768 | Y27: 0 | Z27: 0
B28: 21 | U28: 03:30:00 | V28: 0.00023 | W28: 0 | X28: 0.00768 | Y28: 0 | Z28: 0
B29: 22 | P29: 許 可 申 請 図 書 の 作 成 | U29: 03:40:00 | V29: 0.00024 | W29: 0 | X29: 0.00768 | Y29: 0 | Z29: 0
B30: 23 | U30: 03:50:00 | V30: 0.00024 | W30: 0 | X30: 0.00768 | Y30: 0 | Z30: 0
B31: 24 | P31: ■【様式】許可申請図書の保存場所 | U31: 04:00:00 | V31: 0.00025 | W31: 0 | X31: 0.00768 | Y31: 0 | Z31: 0
B32: 25 | P32: S:\2024河川部\F13024086_長野県特定都市河川\05中間資料\【様式】許可申請図書.xls | U32: 04:10:00 | V32: 0.00025 | W32: 0 | X32: 0.00768 | Y32: 0 | Z32: 0
B33: 26 | U33: 04:20:00 | V33: 0.00026 | W33: 0 | X33: 0.00768 | Y33: 0 | Z33: 0
B34: 27 | U34: 04:30:00 | V34: 0.00026 | W34: 0 | X34: 0.00768 | Y34: 0 | Z34: 0
B35: 28 | U35: 04:40:00 | V35: 0.00027 | W35: 0 | X35: 0.00768 | Y35: 0 | Z35: 0
B36: 29 | U36: 04:50:00 | V36: 0.00028 | W36: 0 | X36: 0.00768 | Y36: 0 | Z36: 0
B37: 30 | U37: 05:00:00 | V37: 0.00028 | W37: 0 | X37: 0.00768 | Y37: 0 | Z37: 0
B38: 31 | U38: 05:10:00 | V38: 0.00029 | W38: 0 | X38: 0.00768 | Y38: 0 | Z38: 0
B39: 32 | U39: 05:20:00 | V39: 0.0003 | W39: 0 | X39: 0.00768 | Y39: 0 | Z39: 0
B40: 33 | U40: 05:30:00 | V40: 0.0003 | W40: 0 | X40: 0.00768 | Y40: 0 | Z40: 0
B41: 34 | U41: 05:40:00 | V41: 0.00031 | W41: 0 | X41: 0.00768 | Y41: 0 | Z41: 0
B42: 35 | U42: 05:50:00 | V42: 0.00032 | W42: 0 | X42: 0.00768 | Y42: 0 | Z42: 0
B43: 36 | U43: 06:00:00 | V43: 0.00033 | W43: 0 | X43: 0.00768 | Y43: 0 | Z43: 0
B44: 37 | U44: 06:10:00 | V44: 0.00034 | W44: 0 | X44: 0.00768 | Y44: 0 | Z44: 0
B45: 38 | U45: 06:20:00 | V45: 0.00035 | W45: 0 | X45: 0.00768 | Y45: 0 | Z45: 0
B46: 39 | U46: 06:30:00 | V46: 0.00036 | W46: 0 | X46: 0.00768 | Y46: 0 | Z46: 0
B47: 40 | U47: 06:40:00 | V47: 0.00037 | W47: 0 | X47: 0.00768 | Y47: 0 | Z47: 0
B48: 41 | U48: 06:50:00 | V48: 0.00038 | W48: 0 | X48: 0.00768 | Y48: 0 | Z48: 0
B49: 42 | U49: 07:00:00 | V49: 0.00039 | W49: 0 | X49: 0.00768 | Y49: 0 | Z49: 0
B50: 43 | U50: 07:10:00 | V50: 0.00041 | W50: 0 | X50: 0.00768 | Y50: 0 | Z50: 0
B51: 44 | U51: 07:20:00 | V51: 0.00042 | W51: 0 | X51: 0.00768 | Y51: 0 | Z51: 0
B52: 45 | U52: 07:30:00 | V52: 0.00044 | W52: 0 | X52: 0.00768 | Y52: 0 | Z52: 0
B53: 46 | U53: 07:40:00 | V53: 0.00046 | W53: 0 | X53: 0.00768 | Y53: 0 | Z53: 0
B54: 47 | U54: 07:50:00 | V54: 0.00048 | W54: 0 | X54: 0.00768 | Y54: 0 | Z54: 0
B55: 48 | U55: 08:00:00 | V55: 0.0005 | W55: 0 | X55: 0.00768 | Y55: 0 | Z55: 0
B56: 49 | U56: 08:10:00 | V56: 0.00052 | W56: 0 | X56: 0.00768 | Y56: 0 | Z56: 0
B57: 50 | U57: 08:20:00 | V57: 0.00054 | W57: 0 | X57: 0.00768 | Y57: 0 | Z57: 0
U58: 08:30:00 | V58: 0.00057 | W58: 0 | X58: 0.00768 | Y58: 0 | Z58: 0
U59: 08:40:00 | V59: 0.0006 | W59: 0 | X59: 0.00768 | Y59: 0 | Z59: 0
U60: 08:50:00 | V60: 0.00063 | W60: 0 | X60: 0.00768 | Y60: 0 | Z60: 0
U61: 09:00:00 | V61: 0.00067 | W61: 0 | X61: 0.00768 | Y61: 0 | Z61: 0
U62: 09:10:00 | V62: 0.00071 | W62: 0 | X62: 0.00768 | Y62: 0 | Z62: 0
U63: 09:20:00 | V63: 0.00076 | W63: 0 | X63: 0.00768 | Y63: 0 | Z63: 0
U64: 09:30:00 | V64: 0.00081 | W64: 0 | X64: 0.00768 | Y64: 0 | Z64: 0
U65: 09:40:00 | V65: 0.00087 | W65: 0 | X65: 0.00768 | Y65: 0 | Z65: 0
U66: 09:50:00 | V66: 0.00095 | W66: 0 | X66: 0.00768 | Y66: 0 | Z66: 0
U67: 10:00:00 | V67: 0.00103 | W67: 0 | X67: 0.00768 | Y67: 0 | Z67: 0
U68: 10:10:00 | V68: 0.00113 | W68: 0 | X68: 0.00768 | Y68: 0 | Z68: 0
U69: 10:20:00 | V69: 0.00125 | W69: 0 | X69: 0.00768 | Y69: 0 | Z69: 0
U70: 10:30:00 | V70: 0.00141 | W70: 0 | X70: 0.00768 | Y70: 0 | Z70: 0
U71: 10:40:00 | V71: 0.0016 | W71: 0 | X71: 0.00768 | Y71: 0 | Z71: 0
U72: 10:50:00 | V72: 0.00184 | W72: 0 | X72: 0.00768 | Y72: 0 | Z72: 0
U73: 11:00:00 | V73: 0.00217 | W73: 0 | X73: 0.00768 | Y73: 0 | Z73: 0
U74: 11:10:00 | V74: 0.00263 | W74: 0 | X74: 0.00768 | Y74: 0 | Z74: 0
U75: 11:20:00 | V75: 0.00332 | W75: 0 | X75: 0.00768 | Y75: 0 | Z75: 0
U76: 11:30:00 | V76: 0.00443 | W76: 0 | X76: 0.00768 | Y76: 0 | Z76: 0
U77: 11:40:00 | V77: 0.00649 | W77: 0 | X77: 0.00768 | Y77: 0 | Z77: 0
U78: 11:50:00 | V78: 0.01127 | W78: 0 | X78: 0.00768 | Y78: 0 | Z78: 0
U79: 12:00:00 | V79: 0.03173 | W79: 0 | X79: 0.00768 | Y79: 0 | Z79: 0
U80: 12:10:00 | V80: 0.01693 | W80: 0.007899 | X80: 0.00768 | Y80: 0.0007999657941 | Z80: 0.02129710262
U81: 12:20:00 | V81: 0.0083 | W81: 0.005991 | X81: 0.00768 | Y81: 0.003021455632 | Z81: 0.05150283834
U82: 12:30:00 | V82: 0.00529 | W82: 0.002981 | X82: 0.00768 | Y82: 0.003642414698 | Z82: 0.05842722735
U83: 12:40:00 | V83: 0.0038 | W83: 0.001491 | X83: 0.00768 | Y83: 0.003042960604 | Z83: 0.05178710144
U84: 12:50:00 | V84: 0.00294 | W84: 0.000631 | X84: 0.00768 | Y84: 0.002243167443 | Z84: 0.0422947173
U85: 13:00:00 | V85: 0.00238 | W85: 7.1e-05 | X85: 0.00768 | Y85: 0.001546297989 | Z85: 0.033032321
U86: 13:10:00 | V86: 0.00199 | W86: 0 | X86: 0.00768 | Y86: 0.001045544561 | Z86: 0.02546979335
U87: 13:20:00 | V87: 0.00171 | W87: 0 | X87: 0.00768 | Y87: 0.0007387091207 | Z87: 0.02011703231
U88: 13:30:00 | V88: 0.00149 | W88: 0 | X88: 0.00768 | Y88: 0.0005406357276 | Z88: 0.01627899776
U89: 13:40:00 | V89: 0.00133 | W89: 0 | X89: 0.00768 | Y89: 0.0004021023142 | Z89: 0.01345078363
U90: 13:50:00 | V90: 0.00119 | W90: 0 | X90: 0.00768 | Y90: 0.0003075595989 | Z90: 0.0113217979
U91: 14:00:00 | V91: 0.00108 | W91: 0 | X91: 0.00768 | Y91: 0.0002447305475 | Z91: 0.009664927456
U92: 14:10:00 | V92: 0.00099 | W92: 0 | X92: 0.00768 | Y92: 0.0001954388569 | Z92: 0.008344419242
U93: 14:20:00 | V93: 0.00091 | W93: 0 | X93: 0.00768 | Y93: 0.0001619848584 | Z93: 0.007272148096
U94: 14:30:00 | V94: 0.00084 | W94: 0 | X94: 0.00768 | Y94: 0.0001306930702 | Z94: 0.006394114311
U95: 14:40:00 | V95: 0.00078 | W95: 0 | X95: 0.00768 | Y95: 0.000108738739 | Z95: 0.005675818883
U96: 14:50:00 | V96: 0.00073 | W96: 0 | X96: 0.00768 | Y96: 9.486837912e-05 | Z96: 0.005064997529
U97: 15:00:00 | V97: 0.00069 | W97: 0 | X97: 0.00768 | Y97: 7.844226602e-05 | Z97: 0.004545065593
U98: 15:10:00 | V98: 0.00065 | W98: 0 | X98: 0.00768 | Y98: 6.909807053e-05 | Z98: 0.004102444584
U99: 15:20:00 | V99: 0.00062 | W99: 0 | X99: 0.00768 | Y99: 5.727029589e-05 | Z99: 0.003723339484
U100: 15:30:00 | V100: 0.00058 | W100: 0 | X100: 0.00768 | Y100: 5.163980479e-05 | Z100: 0.003396609182
U101: 15:40:00 | V101: 0.00056 | W101: 0 | X101: 0.00768 | Y101: 4.620697809e-05 | Z101: 0.003103068834
U102: 15:50:00 | V102: 0.00053 | W102: 0 | X102: 0.00768 | Y102: 4.097928791e-05 | Z102: 0.002841510036
U103: 16:00:00 | V103: 0.00051 | W103: 0 | X103: 0.00768 | Y103: 3.596512434e-05 | Z103: 0.002610676799
U104: 16:10:00 | V104: 0.00049 | W104: 0 | X104: 0.00768 | Y104: 3.117400052e-05 | Z104: 0.002409259424
U105: 16:20:00 | V105: 0.00047 | W105: 0 | X105: 0.00768 | Y105: 2.661682827e-05 | Z105: 0.002235886938
U106: 16:30:00 | V106: 0.00045 | W106: 0 | X106: 0.00768 | Y106: 2.442985712e-05 | Z106: 0.002082746882
U107: 16:40:00 | V107: 0.00043 | W107: 0 | X107: 0.00768 | Y107: 2.230629898e-05 | Z107: 0.001942538414
U108: 16:50:00 | V108: 0.00042 | W108: 0 | X108: 0.00768 | Y108: 2.024810729e-05 | Z108: 0.001814875195
U109: 17:00:00 | V109: 0.0004 | W109: 0 | X109: 0.00768 | Y109: 1.825742807e-05 | Z109: 0.001699358589
U110: 17:10:00 | V110: 0.00039 | W110: 0 | X110: 0.00768 | Y110: 1.633663377e-05 | Z110: 0.001595576403
U111: 17:20:00 | V111: 0.00038 | W111: 0 | X111: 0.00768 | Y111: 1.633663377e-05 | Z111: 0.001497556601
U112: 17:30:00 | V112: 0.00036 | W112: 0 | X112: 0.00768 | Y112: 1.448836618e-05 | Z112: 0.001405081601
U113: 17:40:00 | V113: 0.00035 | W113: 0 | X113: 0.00768 | Y113: 1.271559165e-05 | Z113: 0.001323469727
U114: 17:50:00 | V114: 0.00034 | W114: 0 | X114: 0.00768 | Y114: 1.271559165e-05 | Z114: 0.001247176177
U115: 18:00:00 | V115: 0.00033 | W115: 0 | X115: 0.00768 | Y115: 1.102167358e-05 | Z115: 0.001175964382
U116: 18:10:00 | V116: 0.00032 | W116: 0 | X116: 0.00768 | Y116: 9.410469881e-06 | Z116: 0.001114667951
U117: 18:20:00 | V117: 0.00032 | W117: 0 | X117: 0.00768 | Y117: 9.410469881e-06 | Z117: 0.001058205132
U118: 18:30:00 | V118: 0.00031 | W118: 0 | X118: 0.00768 | Y118: 9.410469881e-06 | Z118: 0.001001742313
U119: 18:40:00 | V119: 0.0003 | W119: 0 | X119: 0.00768 | Y119: 7.886467635e-06 | Z119: 0.0009498515
U120: 18:50:00 | V120: 0.00029 | W120: 0 | X120: 0.00768 | Y120: 7.886467635e-06 | Z120: 0.0009025326942
U121: 19:00:00 | V121: 0.00028 | W121: 0 | X121: 0.00768 | Y121: 6.454975599e-06 | Z121: 0.0008595083645
U122: 19:10:00 | V122: 0.00028 | W122: 0 | X122: 0.00768 | Y122: 6.454975599e-06 | Z122: 0.0008207785109
U123: 19:20:00 | V123: 0.00027 | W123: 0 | X123: 0.00768 | Y123: 6.454975599e-06 | Z123: 0.0007820486573
U124: 19:30:00 | V124: 0.00027 | W124: 0 | X124: 0.00768 | Y124: 5.122410988e-06 | Z124: 0.0007473164975
U125: 19:40:00 | V125: 0.00026 | W125: 0 | X125: 0.00768 | Y125: 5.122410988e-06 | Z125: 0.0007165820316
U126: 19:50:00 | V126: 0.00025 | W126: 0 | X126: 0.00768 | Y126: 5.122410988e-06 | Z126: 0.0006858475657
U127: 20:00:00 | V127: 0.00025 | W127: 0 | X127: 0.00768 | Y127: 5.122410988e-06 | Z127: 0.0006551130997
U128: 20:10:00 | V128: 0.00024 | W128: 0 | X128: 0.00768 | Y128: 3.896750066e-06 | Z128: 0.0006280556166
U129: 20:20:00 | V129: 0.00024 | W129: 0 | X129: 0.00768 | Y129: 3.896750066e-06 | Z129: 0.0006046751162
U130: 20:30:00 | V130: 0.00023 | W130: 0 | X130: 0.00768 | Y130: 3.896750066e-06 | Z130: 0.0005812946158
U131: 20:40:00 | V131: 0.00023 | W131: 0 | X131: 0.00768 | Y131: 3.896750066e-06 | Z131: 0.0005579141154
U132: 20:50:00 | V132: 0.00023 | W132: 0 | X132: 0.00768 | Y132: 3.896750066e-06 | Z132: 0.000534533615
U133: 21:00:00 | V133: 0.00022 | W133: 0 | X133: 0.00768 | Y133: 3.896750066e-06 | Z133: 0.0005111531146
U134: 21:10:00 | V134: 0.00022 | W134: 0 | X134: 0.00768 | Y134: 2.788287372e-06 | Z134: 0.0004910980023
U135: 21:20:00 | V135: 0.00021 | W135: 0 | X135: 0.00768 | Y135: 2.788287372e-06 | Z135: 0.0004743682781
U136: 21:30:00 | V136: 0.00021 | W136: 0 | X136: 0.00768 | Y136: 2.788287372e-06 | Z136: 0.0004576385538
U137: 21:40:00 | V137: 0.00021 | W137: 0 | X137: 0.00768 | Y137: 2.788287372e-06 | Z137: 0.0004409088296
U138: 21:50:00 | V138: 0.0002 | W138: 0 | X138: 0.00768 | Y138: 2.788287372e-06 | Z138: 0.0004241791054
U139: 22:00:00 | V139: 0.0002 | W139: 0 | X139: 0.00768 | Y139: 2.788287372e-06 | Z139: 0.0004074493811
U140: 22:10:00 | V140: 0.0002 | W140: 0 | X140: 0.00768 | Y140: 2.788287372e-06 | Z140: 0.0003907196569
U141: 22:20:00 | V141: 0.00019 | W141: 0 | X141: 0.00768 | Y141: 1.811045773e-06 | Z141: 0.0003769216575
U142: 22:30:00 | V142: 0.00019 | W142: 0 | X142: 0.00768 | Y142: 1.811045773e-06 | Z142: 0.0003660553828
U143: 22:40:00 | V143: 0.00019 | W143: 0 | X143: 0.00768 | Y143: 1.811045773e-06 | Z143: 0.0003551891082
U144: 22:50:00 | V144: 0.00019 | W144: 0 | X144: 0.00768 | Y144: 1.811045773e-06 | Z144: 0.0003443228335
U145: 23:00:00 | V145: 0.00018 | W145: 0 | X145: 0.00768 | Y145: 1.811045773e-06 | Z145: 0.0003334565589
U146: 23:10:00 | V146: 0.00018 | W146: 0 | X146: 0.00768 | Y146: 1.811045773e-06 | Z146: 0.0003225902843
U147: 23:20:00 | V147: 0.00018 | W147: 0 | X147: 0.00768 | Y147: 1.811045773e-06 | Z147: 0.0003117240096
U148: 23:30:00 | V148: 0.00017 | W148: 0 | X148: 0.00768 | Y148: 1.811045773e-06 | Z148: 0.000300857735
U149: 23:40:00 | V149: 0.00017 | W149: 0 | X149: 0.00768 | Y149: 1.811045773e-06 | Z149: 0.0002899914603
U150: 23:50:00 | V150: 0.00017 | W150: 0 | X150: 0.00768 | Y150: 1.811045773e-06 | Z150: 0.0002791251857
U151: 1 | V151: 0.00017 | W151: 0 | X151: 0.00768 | Y151: 1.811045773e-06 | Z151: 0.0002682589111

Sheet 04-②調節計算（2段）
B2: 入 力 条 件
B4: 設 定 調 整 池 諸 元 | K4: 行 為 後 流 入 量 | U4: 計 算 結 果 （時 系 列）
B6: 水深-容量 | G6: ■上段オリフィス | K6: 行為後ピーク流入量 | M6: =MAX('02流出計算（QT-Sグラフ）'!$J$5:$J$149) -> 0.007899 | N6: m3/s | U6: 時刻 | V6: 行為後流入量 | W6: 浸透考慮後流入量 | X6: 許容放流量 | Y6: 調節後放流量 | Z6: 調整池水位
B7: No | C7: 水深H（m） | D7: 容量V（m3） | G7: 放流口形状 | K7: （浸透考慮後） | U7: 00:00:00 | V7: 0 | W7: 0 | X7: 0.01933 | Y7: 0 | Z7: 0
B8: 1 | C8: 0 | D8: 0 | F8: 1 | G8: （口径） | U8: 00:10:00 | V8: 0.0021 | W8: 0 | X8: 0.01933 | Y8: 0 | Z8: 0
B9: 2 | C9: 3 | D9: 300 | K9: 許容放流量（計） | M9: =MAX('01流出計算（Q-Tグラフ）'!$I$5:$I$149) -> 0.00768 | N9: m3/s | U9: 00:20:00 | V9: 0.00217 | W9: 0 | X9: 0.01933 | Y9: 0 | Z9: 0
B10: 3 | G10: 直径 | H10: 0.1 | I10: m | U10: 00:30:00 | V10: 0.00217 | W10: 0 | X10: 0.01933 | Y10: 0 | Z10: 0
B11: 4 | P11: 計 算 結 果 | U11: 00:40:00 | V11: 0.00217 | W11: 0 | X11: 0.01933 | Y11: 0 | Z11: 0
B12: 5 | K12: 許容放流量（上段） | N12: m3/s | U12: 00:50:00 | V12: 0.00225 | W12: 0 | X12: 0.01933 | Y12: 0 | Z12: 0
B13: 6 | G13: 高さ | I13: m | U13: 01:00:00 | V13: 0.00225 | W13: 0 | X13: 0.01933 | Y13: 0 | Z13: 0
B14: 7 | G14: 幅 | I14: m | P14: 総合評価 | R14: O.K | U14: 01:10:00 | V14: 0.00225 | W14: 0 | X14: 0.01933 | Y14: 0 | Z14: 0
B15: 8 | K15: 許容放流量（下段） | M15: =M9-M12 -> 0.00768 | N15: m3/s | U15: 01:20:00 | V15: 0.00233 | W15: 0 | X15: 0.01933 | Y15: 0 | Z15: 0
B16: 9 | G16: （管底位置） | P16: 放流量評価 | R16: 許容放流量以下 | U16: 01:30:00 | V16: 0.00233 | W16: 0 | X16: 0.01933 | Y16: 0 | Z16: 0
B17: 10 | G17: 池底高から | H17: 1 | I17: m | U17: 01:40:00 | V17: 0.00233 | W17: 0 | X17: 0.01933 | Y17: 0 | Z17: 0
B18: 11 | P18: 池の容量不足 | R18: 無 | U18: 01:50:00 | V18: 0.0024 | W18: 0 | X18: 0.01933 | Y18: 0 | Z18: 0
B19: 12 | G19: ■下段オリフィス | U19: 02:00:00 | V19: 0.0024 | W19: 0 | X19: 0.01933 | Y19: 0 | Z19: 0
B20: 13 | G20: 放流口形状 | U20: 02:10:00 | V20: 0.00247 | W20: 0 | X20: 0.01933 | Y20: 0 | Z20: 0
B21: 14 | G21: （口径） | P21: 最大放流量（上段+下段） | R21: 0.002445452029 | S21: m3/s | U21: 02:20:00 | V21: 0.00247 | W21: 0 | X21: 0.01933 | Y21: 0 | Z21: 0
B22: 15 | F22: 2 | U22: 02:30:00 | V22: 0.00247 | W22: 0 | X22: 0.01933 | Y22: 0 | Z22: 0
B23: 16 | G23: 直径 | I23: m | P23: 最大放流量（下段） | R23: 0.002445452029 | S23: m3/s | U23: 02:40:00 | V23: 0.00255 | W23: 0 | X23: 0.01933 | Y23: 0 | Z23: 0
B24: 17 | U24: 02:50:00 | V24: 0.00255 | W24: 0 | X24: 0.01933 | Y24: 0 | Z24: 0
B25: 18 | P25: 池内最大水深 | R25: 0.8524618564 | S25: m | U25: 03:00:00 | V25: 0.00262 | W25: 0 | X25: 0.01933 | Y25: 0 | Z25: 0
B26: 19 | G26: 高さ | H26: 0.01 | I26: m | U26: 03:10:00 | V26: 0.00262 | W26: 0 | X26: 0.01933 | Y26: 0 | Z26: 0
B27: 20 | G27: 幅 | H27: 0.1 | I27: m | P27: 池内最大ボリューム | R27: 85.24618564 | S27: m3 | U27: 03:20:00 | V27: 0.0027 | W27: 0 | X27: 0.01933 | Y27: 0 | Z27: 0
B28: 21 | U28: 03:30:00 | V28: 0.0027 | W28: 0 | X28: 0.01933 | Y28: 0 | Z28: 0
B29: 22 | G29: （管底位置） | P29: 許 可 申 請 図 書 の 作 成 | U29: 03:40:00 | V29: 0.00278 | W29: 0 | X29: 0.01933 | Y29: 0 | Z29: 0
B30: 23 | G30: 池底高から | H30: 0 | I30: m | U30: 03:50:00 | V30: 0.00278 | W30: 0 | X30: 0.01933 | Y30: 0 | Z30: 0
B31: 24 | P31: ■申請図書様式の保存場所 | U31: 04:00:00 | V31: 0.00285 | W31: 0 | X31: 0.01933 | Y31: 0 | Z31: 0
B32: 25 | P32: S:\2024河川部\F13024086_長野県特定都市河川\05中間資料\【様式】許可申請図書.XLS | U32: 04:10:00 | V32: 0.00292 | W32: 0 | X32: 0.01933 | Y32: 0 | Z32: 0
B33: 26 | U33: 04:20:00 | V33: 0.00292 | W33: 0 | X33: 0.01933 | Y33: 0 | Z33: 0
B34: 27 | U34: 04:30:00 | V34: 0.003 | W34: 0 | X34: 0.01933 | Y34: 0 | Z34: 0
B35: 28 | U35: 04:40:00 | V35: 0.003 | W35: 0 | X35: 0.01933 | Y35: 0 | Z35: 0
B36: 29 | U36: 04:50:00 | V36: 0.00308 | W36: 0 | X36: 0.01933 | Y36: 0 | Z36: 0
B37: 30 | U37: 05:00:00 | V37: 0.00315 | W37: 0 | X37: 0.01933 | Y37: 0 | Z37: 0
B38: 31 | U38: 05:10:00 | V38: 0.00322 | W38: 0 | X38: 0.01933 | Y38: 0 | Z38: 0
B39: 32 | U39: 05:20:00 | V39: 0.00322 | W39: 0 | X39: 0.01933 | Y39: 0 | Z39: 0
B40: 33 | U40: 05:30:00 | V40: 0.0033 | W40: 0 | X40: 0.01933 | Y40: 0 | Z40: 0
B41: 34 | U41: 05:40:00 | V41: 0.00337 | W41: 0 | X41: 0.01933 | Y41: 0 | Z41: 0
B42: 35 | U42: 05:50:00 | V42: 0.00345 | W42: 0 | X42: 0.01933 | Y42: 0 | Z42: 0
B43: 36 | U43: 06:00:00 | V43: 0.00353 | W43: 0 | X43: 0.01933 | Y43: 0 | Z43: 0
B44: 37 | U44: 06:10:00 | V44: 0.0036 | W44: 0 | X44: 0.01933 | Y44: 0 | Z44: 0
B45: 38 | U45: 06:20:00 | V45: 0.00368 | W45: 0 | X45: 0.01933 | Y45: 0 | Z45: 0
B46: 39 | U46: 06:30:00 | V46: 0.00375 | W46: 0 | X46: 0.01933 | Y46: 0 | Z46: 0
B47: 40 | U47: 06:40:00 | V47: 0.00382 | W47: 0 | X47: 0.01933 | Y47: 0 | Z47: 0
B48: 41 | U48: 06:50:00 | V48: 0.0039 | W48: 0 | X48: 0.01933 | Y48: 0 | Z48: 0
B49: 42 | U49: 07:00:00 | V49: 0.00405 | W49: 0 | X49: 0.01933 | Y49: 0 | Z49: 0
B50: 43 | U50: 07:10:00 | V50: 0.00412 | W50: 0 | X50: 0.01933 | Y50: 0 | Z50: 0
B51: 44 | U51: 07:20:00 | V51: 0.0042 | W51: 0 | X51: 0.01933 | Y51: 0 | Z51: 0
B52: 45 | U52: 07:30:00 | V52: 0.00435 | W52: 0 | X52: 0.01933 | Y52: 0 | Z52: 0
B53: 46 | U53: 07:40:00 | V53: 0.0045 | W53: 0 | X53: 0.01933 | Y53: 0 | Z53: 0
B54: 47 | U54: 07:50:00 | V54: 0.00458 | W54: 0 | X54: 0.01933 | Y54: 0 | Z54: 0
B55: 48 | U55: 08:00:00 | V55: 0.00472 | W55: 0 | X55: 0.01933 | Y55: 0 | Z55: 0
B56: 49 | U56: 08:10:00 | V56: 0.00488 | W56: 0 | X56: 0.01933 | Y56: 0 | Z56: 0
B57: 50 | U57: 08:20:00 | V57: 0.00503 | W57: 0 | X57: 0.01933 | Y57: 0 | Z57: 0
U58: 08:30:00 | V58: 0.00525 | W58: 0 | X58: 0.01933 | Y58: 0 | Z58: 0
U59: 08:40:00 | V59: 0.0054 | W59: 0 | X59: 0.01933 | Y59: 0 | Z59: 0
U60: 08:50:00 | V60: 0.00562 | W60: 0 | X60: 0.01933 | Y60: 0 | Z60: 0
U61: 09:00:00 | V61: 0.00585 | W61: 0 | X61: 0.01933 | Y61: 0 | Z61: 0
U62: 09:10:00 | V62: 0.00615 | W62: 0 | X62: 0.01933 | Y62: 0 | Z62: 0
U63: 09:20:00 | V63: 0.00638 | W63: 0 | X63: 0.01933 | Y63: 0 | Z63: 0
U64: 09:30:00 | V64: 0.00675 | W64: 0 | X64: 0.01933 | Y64: 0 | Z64: 0
U65: 09:40:00 | V65: 0.00705 | W65: 0 | X65: 0.01933 | Y65: 0 | Z65: 0
U66: 09:50:00 | V66: 0.00742 | W66: 0 | X66: 0.01933 | Y66: 0 | Z66: 0
U67: 10:00:00 | V67: 0.00795 | W67: 0 | X67: 0.01933 | Y67: 0 | Z67: 0
U68: 10:10:00 | V68: 0.0084 | W68: 0 | X68: 0.01933 | Y68: 0 | Z68: 0
U69: 10:20:00 | V69: 0.00908 | W69: 0 | X69: 0.01933 | Y69: 0 | Z69: 0
U70: 10:30:00 | V70: 0.00975 | W70: 0 | X70: 0.01933 | Y70: 0 | Z70: 0
U71: 10:40:00 | V71: 0.01065 | W71: 0 | X71: 0.01933 | Y71: 0 | Z71: 0
U72: 10:50:00 | V72: 0.0117 | W72: 0 | X72: 0.01933 | Y72: 0 | Z72: 0
U73: 11:00:00 | V73: 0.01305 | W73: 0 | X73: 0.01933 | Y73: 0 | Z73: 0
U74: 11:10:00 | V74: 0.01485 | W74: 0 | X74: 0.01933 | Y74: 0 | Z74: 0
U75: 11:20:00 | V75: 0.01733 | W75: 0 | X75: 0.01933 | Y75: 0 | Z75: 0
U76: 11:30:00 | V76: 0.02092 | W76: 0 | X76: 0.01933 | Y76: 0 | Z76: 0
U77: 11:40:00 | V77: 0.02692 | W77: 0 | X77: 0.01933 | Y77: 0 | Z77: 0
U78: 11:50:00 | V78: 0.03915 | W78: 0 | X78: 0.01933 | Y78: 0 | Z78: 0
U79: 12:00:00 | V79: 0.087 | W79: 0.03050871565 | X79: 0.01933 | Y79: 0.0007706621798 | Z79: 0.08921416041
U80: 12:10:00 | V80: 0.0522 | W80: 0.045709 | X80: 0.01933 | Y80: 0.001469630813 | Z80: 0.3111464284
U81: 12:20:00 | V81: 0.0318 | W81: 0.025304 | X81: 0.01933 | Y81: 0.001895424507 | Z81: 0.5140902624
U82: 12:30:00 | V82: 0.02355 | W82: 0.017051 | X82: 0.01933 | Y82: 0.002098572171 | Z82: 0.6291732724
U83: 12:40:00 | V83: 0.01897 | W83: 0.012469 | X83: 0.01933 | Y83: 0.00222207064 | Z83: 0.704771344
U84: 12:50:00 | V84: 0.01598 | W84: 0.009478 | X84: 0.01933 | Y84: 0.00230343563 | Z84: 0.7570358251
U85: 13:00:00 | V85: 0.01388 | W85: 0.007378 | X85: 0.01933 | Y85: 0.002358858652 | Z85: 0.7936169423
U86: 13:10:00 | V86: 0.01237 | W86: 0.005868 | X86: 0.01933 | Y86: 0.002396622844 | Z86: 0.8190884978
U87: 13:20:00 | V87: 0.01118 | W87: 0.004678 | X87: 0.01933 | Y87: 0.002421827475 | Z87: 0.8362711469
U88: 13:30:00 | V88: 0.0102 | W88: 0.003698 | X88: 0.01933 | Y88: 0.002437249242 | Z88: 0.8468219167
U89: 13:40:00 | V89: 0.00938 | W89: 0.002878 | X89: 0.01933 | Y89: 0.002444659414 | Z89: 0.8519041907
U90: 13:50:00 | V90: 0.0087 | W90: 0.002198 | X90: 0.01933 | Y90: 0.002445452029 | Z90: 0.8524618564
U91: 14:00:00 | V91: 0.00818 | W91: 0.001678 | X91: 0.01933 | Y91: 0.00244095714 | Z91: 0.8494306289
U92: 14:10:00 | V92: 0.00765 | W92: 0.001148 | X92: 0.01933 | Y92: 0.002431942438 | Z92: 0.8432899302
U93: 14:20:00 | V93: 0.00728 | W93: 0.000778 | X93: 0.01933 | Y93: 0.002419425632 | Z93: 0.834513826
U94: 14:30:00 | V94: 0.0069 | W94: 0.000398 | X94: 0.01933 | Y94: 0.002403352005 | Z94: 0.823573493
U95: 14:40:00 | V95: 0.00652 | W95: 1.8e-05 | X95: 0.01933 | Y95: 0.002383920599 | Z95: 0.8104596752
U96: 14:50:00 | V96: 0.00622 | W96: 0 | X96: 0.01933 | Y96: 0.002362962975 | Z96: 0.7962730245
U97: 15:00:00 | V97: 0.006 | W97: 0 | X97: 0.01933 | Y97: 0.002341817804 | Z97: 0.7821586822
U98: 15:10:00 | V98: 0.00578 | W98: 0 | X98: 0.01933 | Y98: 0.002320479956 | Z98: 0.7681717889
U99: 15:20:00 | V99: 0.00555 | W99: 0 | X99: 0.01933 | Y99: 0.002299505993 | Z99: 0.754311831
U100: 15:30:00 | V100: 0.00532 | W100: 0 | X100: 0.01933 | Y100: 0.002278338956 | Z100: 0.7405782962
U101: 15:40:00 | V101: 0.00518 | W101: 0 | X101: 0.01933 | Y101: 0.002256973412 | Z101: 0.7269723591
U102: 15:50:00 | V102: 0.00495 | W102: 0 | X102: 0.01933 | Y102: 0.002235981564 | Z102: 0.7134934942
U103: 16:00:00 | V103: 0.0048 | W103: 0 | X103: 0.01933 | Y103: 0.002214790763 | Z103: 0.7001411772
U104: 16:10:00 | V104: 0.00465 | W104: 0 | X104: 0.01933 | Y104: 0.002193689743 | Z104: 0.6869157357
U105: 16:20:00 | V105: 0.0045 | W105: 0 | X105: 0.01933 | Y105: 0.002172383771 | Z105: 0.6738175151
U106: 16:30:00 | V106: 0.00443 | W106: 0 | X106: 0.01933 | Y106: 0.00215116708 | Z106: 0.6608468626
U107: 16:40:00 | V107: 0.00427 | W107: 0 | X107: 0.01933 | Y107: 0.002130042336 | Z107: 0.6480032343
U108: 16:50:00 | V108: 0.0042 | W108: 0 | X108: 0.01933 | Y108: 0.002109012302 | Z108: 0.6352860704
U109: 17:00:00 | V109: 0.00405 | W109: 0 | X109: 0.01933 | Y109: 0.002087770445 | Z109: 0.6226957222
U110: 17:10:00 | V110: 0.00398 | W110: 0 | X110: 0.01933 | Y110: 0.00206662284 | Z110: 0.6102325423
U111: 17:20:00 | V111: 0.0039 | W111: 0 | X111: 0.01933 | Y111: 0.002045256583 | Z111: 0.597896904
U112: 17:30:00 | V112: 0.00382 | W112: 0 | X112: 0.01933 | Y112: 0.002024303092 | Z112: 0.585688225
U113: 17:40:00 | V113: 0.00368 | W113: 0 | X113: 0.01933 | Y113: 0.002003130431 | Z113: 0.5736059245
U114: 17:50:00 | V114: 0.0036 | W114: 0 | X114: 0.01933 | Y114: 0.001981731576 | Z114: 0.5616513384
U115: 18:00:00 | V115: 0.00353 | W115: 0 | X115: 0.01933 | Y115: 0.001960758154 | Z115: 0.5498238692
U116: 18:10:00 | V116: 0.00345 | W116: 0 | X116: 0.01933 | Y116: 0.001939557949 | Z116: 0.5381229209
U117: 18:20:00 | V117: 0.00337 | W117: 0 | X117: 0.01933 | Y117: 0.001918460198 | Z117: 0.5265488665
U118: 18:30:00 | V118: 0.00337 | W118: 0 | X118: 0.01933 | Y118: 0.001897127835 | Z118: 0.5151021024
U119: 18:40:00 | V119: 0.0033 | W119: 0 | X119: 0.01933 | Y119: 0.001875897254 | Z119: 0.5037830271
U120: 18:50:00 | V120: 0.00322 | W120: 0 | X120: 0.01933 | Y120: 0.001854771949 | Z120: 0.4925910195
U121: 19:00:00 | V121: 0.00315 | W121: 0 | X121: 0.01933 | Y121: 0.00183375556 | Z121: 0.481525437
U122: 19:10:00 | V122: 0.00308 | W122: 0 | X122: 0.01933 | Y122: 0.001812495496 | Z122: 0.4705866838
U123: 19:20:00 | V123: 0.00308 | W123: 0 | X123: 0.01933 | Y123: 0.001791343737 | Z123: 0.4597751661
U124: 19:30:00 | V124: 0.003 | W124: 0 | X124: 0.01933 | Y124: 0.001770304165 | Z124: 0.4490902224
U125: 19:40:00 | V125: 0.00292 | W125: 0 | X125: 0.01933 | Y125: 0.001749011518 | Z125: 0.4385322754
U126: 19:50:00 | V126: 0.00292 | W126: 0 | X126: 0.01933 | Y126: 0.001727830355 | Z126: 0.4281017498
U127: 20:00:00 | V127: 0.00285 | W127: 0 | X127: 0.01933 | Y127: 0.001706764826 | Z127: 0.4177979642
U128: 20:10:00 | V128: 0.00285 | W128: 0 | X128: 0.01933 | Y128: 0.001685436029 | Z128: 0.4076213616
U129: 20:20:00 | V129: 0.00278 | W129: 0 | X129: 0.01933 | Y129: 0.001664222052 | Z129: 0.3975723874
U130: 20:30:00 | V130: 0.00278 | W130: 0 | X130: 0.01933 | Y130: 0.001643127342 | Z130: 0.3876503392
U131: 20:40:00 | V131: 0.0027 | W131: 0 | X131: 0.01933 | Y131: 0.001622156551 | Z131: 0.3778544875
U132: 20:50:00 | V132: 0.0027 | W132: 0 | X132: 0.01933 | Y132: 0.001600911081 | Z132: 0.3681852846
U133: 21:00:00 | V133: 0.00262 | W133: 0 | X133: 0.01933 | Y133: 0.001579788814 | Z133: 0.358643185
U134: 21:10:00 | V134: 0.00262 | W134: 0 | X134: 0.01933 | Y134: 0.001558380281 | Z134: 0.3492286777
U135: 21:20:00 | V135: 0.00255 | W135: 0 | X135: 0.01933 | Y135: 0.001537093849 | Z135: 0.3399422553
U136: 21:30:00 | V136: 0.00255 | W136: 0 | X136: 0.01933 | Y136: 0.001515934659 | Z136: 0.3307831698
U137: 21:40:00 | V137: 0.00247 | W137: 0 | X137: 0.01933 | Y137: 0.001494908115 | Z137: 0.3217506414
U138: 21:50:00 | V138: 0.00247 | W138: 0 | X138: 0.01933 | Y138: 0.001474019894 | Z138: 0.3128438574
U139: 22:00:00 | V139: 0.0024 | W139: 0 | X139: 0.01933 | Y139: 0.001452831382 | Z139: 0.3040633036
U140: 22:10:00 | V140: 0.0024 | W140: 0 | X140: 0.01933 | Y140: 0.001431329242 | Z140: 0.2954108217
U141: 22:20:00 | V141: 0.0024 | W141: 0 | X141: 0.01933 | Y141: 0.001410415456 | Z141: 0.2868855876
U142: 22:30:00 | V142: 0.00233 | W142: 0 | X142: 0.01933 | Y142: 0.001389186855 | Z142: 0.2784867807
U143: 22:40:00 | V143: 0.00233 | W143: 0 | X143: 0.01933 | Y143: 0.001368101045 | Z143: 0.270214917
U144: 22:50:00 | V144: 0.00233 | W144: 0 | X144: 0.01933 | Y144: 0.001346685123 | Z144: 0.2620705585
U145: 23:00:00 | V145: 0.00225 | W145: 0 | X145: 0.01933 | Y145: 0.001325897868 | Z145: 0.2540528095
U146: 23:10:00 | V146: 0.00225 | W146: 0 | X146: 0.01933 | Y146: 0.001304284286 | Z146: 0.2461622631
U147: 23:20:00 | V147: 0.00225 | W147: 0 | X147: 0.01933 | Y147: 0.001283313613 | Z147: 0.2383994694
U148: 23:30:00 | V148: 0.00217 | W148: 0 | X148: 0.01933 | Y148: 0.001261994515 | Z148: 0.230763545
U149: 23:40:00 | V149: 0.00217 | W149: 0 | X149: 0.01933 | Y149: 0.001240829753 | Z149: 0.2232550722
U150: 23:50:00 | V150: 0.00217 | W150: 0 | X150: 0.01933 | Y150: 0.00121982736 | Z150: 0.2158731008
U151: 1 | V151: 0.0021 | W151: 0 | X151: 0.01933 | Y151: 0.001198456967 | Z151: 0.2086182478

Sheet 04-③調節計算（ポンプ）
B2: 入 力 条 件
B4: 設 定 調 整 池 諸 元 | F4: 放 流 ポ ン プ 諸 元 | J4: 行 為 後 流 入 量 | U4: 計 算 結 果 （時 系 列）
B6: 水深-容量 | F6: 水深-ポンプ | J6: 行為後ピーク流入量 | L6: =MAX('02流出計算（QT-Sグラフ）'!$J$5:$J$149) -> 0.007899 | M6: m3/s | U6: 時刻 | V6: 行為後流入量 | W6: 浸透考慮後流入量 | X6: 許容放流量 | Y6: 調節後放流量 | Z6: 調整池水位
B7: No | C7: 水深H（m） | D7: 容量V（m3） | F7: No | G7: 水深H（m） | H7: ポンプ規模Q(m3/s) | J7: （浸透考慮後） | U7: 00:00:00 | V7: 0 | W7: 0 | X7: 0.01933 | Y7: 0 | Z7: 0
B8: 1 | C8: 0 | D8: 0 | F8: 1 | G8: 0 | H8: 0 | U8: 00:10:00 | V8: 0.0021 | W8: 0 | X8: 0.01933 | Y8: 0 | Z8: 0
B9: 2 | C9: 3 | D9: 90 | F9: 2 | G9: 3 | H9: 0.015 | J9: 許容放流量 | L9: =MAX('01流出計算（Q-Tグラフ）'!$I$5:$I$149) -> 0.00768 | M9: m3/s | U9: 00:20:00 | V9: 0.00217 | W9: 0 | X9: 0.01933 | Y9: 0 | Z9: 0
B10: 3 | F10: 3 | J10: （行為前ピーク流入量） | U10: 00:30:00 | V10: 0.00217 | W10: 0 | X10: 0.01933 | Y10: 0 | Z10: 0
B11: 4 | F11: 4 | P11: 計 算 結 果 | U11: 00:40:00 | V11: 0.00217 | W11: 0 | X11: 0.01933 | Y11: 0 | Z11: 0
B12: 5 | F12: 5 | U12: 00:50:00 | V12: 0.00225 | W12: 0 | X12: 0.01933 | Y12: 0 | Z12: 0
B13: 6 | F13: 6 | U13: 01:00:00 | V13: 0.00225 | W13: 0 | X13: 0.01933 | Y13: 0 | Z13: 0
B14: 7 | F14: 7 | P14: 総合評価 | R14: O.K | U14: 01:10:00 | V14: 0.00225 | W14: 0 | X14: 0.01933 | Y14: 0 | Z14: 0
B15: 8 | F15: 8 | U15: 01:20:00 | V15: 0.00233 | W15: 0 | X15: 0.01933 | Y15: 0 | Z15: 0
B16: 9 | F16: 9 | P16: 放流量評価 | R16: 許容放流量以下 | U16: 01:30:00 | V16: 0.00233 | W16: 0 | X16: 0.01933 | Y16: 0 | Z16: 0
B17: 10 | F17: 10 | U17: 01:40:00 | V17: 0.00233 | W17: 0 | X17: 0.01933 | Y17: 0 | Z17: 0
B18: 11 | F18: 11 | P18: 池の容量不足 | R18: 無 | U18: 01:50:00 | V18: 0.0024 | W18: 0 | X18: 0.01933 | Y18: 0 | Z18: 0
B19: 12 | F19: 12 | U19: 02:00:00 | V19: 0.0024 | W19: 0 | X19: 0.01933 | Y19: 0 | Z19: 0
B20: 13 | F20: 13 | U20: 02:10:00 | V20: 0.00247 | W20: 0 | X20: 0.01933 | Y20: 0 | Z20: 0
B21: 14 | F21: 14 | P21: 最大放流量 | R21: 0.00978515625 | S21: m3/s | U21: 02:20:00 | V21: 0.00247 | W21: 0 | X21: 0.01933 | Y21: 0 | Z21: 0
B22: 15 | F22: 15 | U22: 02:30:00 | V22: 0.00247 | W22: 0 | X22: 0.01933 | Y22: 0 | Z22: 0
B23: 16 | F23: 16 | P23: 池内最大水深 | R23: 1.957063288 | S23: m | U23: 02:40:00 | V23: 0.00255 | W23: 0 | X23: 0.01933 | Y23: 0 | Z23: 0
B24: 17 | F24: 17 | U24: 02:50:00 | V24: 0.00255 | W24: 0 | X24: 0.01933 | Y24: 0 | Z24: 0
B25: 18 | F25: 18 | P25: 池内最大ボリューム | R25: 58.71189863 | S25: m3 | U25: 03:00:00 | V25: 0.00262 | W25: 0 | X25: 0.01933 | Y25: 0 | Z25: 0
B26: 19 | F26: 19 | U26: 03:10:00 | V26: 0.00262 | W26: 0 | X26: 0.01933 | Y26: 0 | Z26: 0
B27: 20 | F27: 20 | U27: 03:20:00 | V27: 0.0027 | W27: 0 | X27: 0.01933 | Y27: 0 | Z27: 0
B28: 21 | F28: 21 | U28: 03:30:00 | V28: 0.0027 | W28: 0 | X28: 0.01933 | Y28: 0 | Z28: 0
B29: 22 | F29: 22 | P29: 許 可 申 請 図 書 の 作 成 | U29: 03:40:00 | V29: 0.00278 | W29: 0 | X29: 0.01933 | Y29: 0 | Z29: 0
B30: 23 | F30: 23 | U30: 03:50:00 | V30: 0.00278 | W30: 0 | X30: 0.01933 | Y30: 0 | Z30: 0
B31: 24 | F31: 24 | P31: ■申請図書様式の保存場所 | U31: 04:00:00 | V31: 0.00285 | W31: 0 | X31: 0.01933 | Y31: 0 | Z31: 0
B32: 25 | F32: 25 | P32: C:\【様式】許可申請図書.xls | U32: 04:10:00 | V32: 0.00292 | W32: 0 | X32: 0.01933 | Y32: 0 | Z32: 0
B33: 26 | F33: 26 | U33: 04:20:00 | V33: 0.00292 | W33: 0 | X33: 0.01933 | Y33: 0 | Z33: 0
B34: 27 | F34: 27 | U34: 04:30:00 | V34: 0.003 | W34: 0 | X34: 0.01933 | Y34: 0 | Z34: 0
B35: 28 | F35: 28 | U35: 04:40:00 | V35: 0.003 | W35: 0 | X35: 0.01933 | Y35: 0 | Z35: 0
B36: 29 | F36: 29 | U36: 04:50:00 | V36: 0.00308 | W36: 0 | X36: 0.01933 | Y36: 0 | Z36: 0
B37: 30 | F37: 30 | U37: 05:00:00 | V37: 0.00315 | W37: 0 | X37: 0.01933 | Y37: 0 | Z37: 0
B38: 31 | F38: 31 | U38: 05:10:00 | V38: 0.00322 | W38: 0 | X38: 0.01933 | Y38: 0 | Z38: 0
B39: 32 | F39: 32 | U39: 05:20:00 | V39: 0.00322 | W39: 0 | X39: 0.01933 | Y39: 0 | Z39: 0
B40: 33 | F40: 33 | U40: 05:30:00 | V40: 0.0033 | W40: 0 | X40: 0.01933 | Y40: 0 | Z40: 0
B41: 34 | F41: 34 | U41: 05:40:00 | V41: 0.00337 | W41: 0 | X41: 0.01933 | Y41: 0 | Z41: 0
B42: 35 | F42: 35 | U42: 05:50:00 | V42: 0.00345 | W42: 0 | X42: 0.01933 | Y42: 0 | Z42: 0
B43: 36 | F43: 36 | U43: 06:00:00 | V43: 0.00353 | W43: 0 | X43: 0.01933 | Y43: 0 | Z43: 0
B44: 37 | F44: 37 | U44: 06:10:00 | V44: 0.0036 | W44: 0 | X44: 0.01933 | Y44: 0 | Z44: 0
B45: 38 | F45: 38 | U45: 06:20:00 | V45: 0.00368 | W45: 0 | X45: 0.01933 | Y45: 0 | Z45: 0
B46: 39 | F46: 39 | U46: 06:30:00 | V46: 0.00375 | W46: 0 | X46: 0.01933 | Y46: 0 | Z46: 0
B47: 40 | F47: 40 | U47: 06:40:00 | V47: 0.00382 | W47: 0 | X47: 0.01933 | Y47: 0 | Z47: 0
B48: 41 | F48: 41 | U48: 06:50:00 | V48: 0.0039 | W48: 0 | X48: 0.01933 | Y48: 0 | Z48: 0
B49: 42 | F49: 42 | U49: 07:00:00 | V49: 0.00405 | W49: 0 | X49: 0.01933 | Y49: 0 | Z49: 0
B50: 43 | F50: 43 | U50: 07:10:00 | V50: 0.00412 | W50: 0 | X50: 0.01933 | Y50: 0 | Z50: 0
B51: 44 | F51: 44 | U51: 07:20:00 | V51: 0.0042 | W51: 0 | X51: 0.01933 | Y51: 0 | Z51: 0
B52: 45 | F52: 45 | U52: 07:30:00 | V52: 0.00435 | W52: 0 | X52: 0.01933 | Y52: 0 | Z52: 0
B53: 46 | F53: 46 | U53: 07:40:00 | V53: 0.0045 | W53: 0 | X53: 0.01933 | Y53: 0 | Z53: 0
B54: 47 | F54: 47 | U54: 07:50:00 | V54: 0.00458 | W54: 0 | X54: 0.01933 | Y54: 0 | Z54: 0
B55: 48 | F55: 48 | U55: 08:00:00 | V55: 0.00472 | W55: 0 | X55: 0.01933 | Y55: 0 | Z55: 0
B56: 49 | F56: 49 | U56: 08:10:00 | V56: 0.00488 | W56: 0 | X56: 0.01933 | Y56: 0 | Z56: 0
B57: 50 | F57: 50 | U57: 08:20:00 | V57: 0.00503 | W57: 0 | X57: 0.01933 | Y57: 0 | Z57: 0
U58: 08:30:00 | V58: 0.00525 | W58: 0 | X58: 0.01933 | Y58: 0 | Z58: 0
U59: 08:40:00 | V59: 0.0054 | W59: 0 | X59: 0.01933 | Y59: 0 | Z59: 0
U60: 08:50:00 | V60: 0.00562 | W60: 0 | X60: 0.01933 | Y60: 0 | Z60: 0
U61: 09:00:00 | V61: 0.00585 | W61: 0 | X61: 0.01933 | Y61: 0 | Z61: 0
U62: 09:10:00 | V62: 0.00615 | W62: 0 | X62: 0.01933 | Y62: 0 | Z62: 0
U63: 09:20:00 | V63: 0.00638 | W63: 0 | X63: 0.01933 | Y63: 0 | Z63: 0
U64: 09:30:00 | V64: 0.00675 | W64: 0 | X64: 0.01933 | Y64: 0 | Z64: 0
U65: 09:40:00 | V65: 0.00705 | W65: 0 | X65: 0.01933 | Y65: 0 | Z65: 0
U66: 09:50:00 | V66: 0.00742 | W66: 0 | X66: 0.01933 | Y66: 0 | Z66: 0
U67: 10:00:00 | V67: 0.00795 | W67: 0 | X67: 0.01933 | Y67: 0 | Z67: 0
U68: 10:10:00 | V68: 0.0084 | W68: 0 | X68: 0.01933 | Y68: 0 | Z68: 0
U69: 10:20:00 | V69: 0.00908 | W69: 0 | X69: 0.01933 | Y69: 0 | Z69: 0
U70: 10:30:00 | V70: 0.00975 | W70: 0 | X70: 0.01933 | Y70: 0 | Z70: 0
U71: 10:40:00 | V71: 0.01065 | W71: 0 | X71: 0.01933 | Y71: 0 | Z71: 0
U72: 10:50:00 | V72: 0.0117 | W72: 0 | X72: 0.01933 | Y72: 0 | Z72: 0
U73: 11:00:00 | V73: 0.01305 | W73: 0 | X73: 0.01933 | Y73: 0 | Z73: 0
U74: 11:10:00 | V74: 0.01485 | W74: 0 | X74: 0.01933 | Y74: 0 | Z74: 0
U75: 11:20:00 | V75: 0.01733 | W75: 0 | X75: 0.01933 | Y75: 0 | Z75: 0
U76: 11:30:00 | V76: 0.02092 | W76: 0 | X76: 0.01933 | Y76: 0 | Z76: 0
U77: 11:40:00 | V77: 0.02692 | W77: 0 | X77: 0.01933 | Y77: 0 | Z77: 0
U78: 11:50:00 | V78: 0.03915 | W78: 0 | X78: 0.01933 | Y78: 0 | Z78: 0
U79: 12:00:00 | V79: 0.087 | W79: 0.03050871565 | X79: 0.01933 | Y79: 0.001452941895 | Z79: 0.2905577376
U80: 12:10:00 | V80: 0.0522 | W80: 0.045709 | X80: 0.01933 | Y80: 0.004943847656 | Z80: 0.9887669986
U81: 12:20:00 | V81: 0.0318 | W81: 0.025304 | X81: 0.01933 | Y81: 0.007854309082 | Z81: 1.570915431
U82: 12:30:00 | V82: 0.02355 | W82: 0.017051 | X82: 0.01933 | Y82: 0.00912322998 | Z82: 1.824690041
U83: 12:40:00 | V83: 0.01897 | W83: 0.012469 | X83: 0.01933 | Y83: 0.009660644531 | Z83: 1.932051295
U84: 12:50:00 | V84: 0.01598 | W84: 0.009478 | X84: 0.01933 | Y84: 0.00978515625 | Z84: 1.957063288
U85: 13:00:00 | V85: 0.01388 | W85: 0.007378 | X85: 0.01933 | Y85: 0.009656066895 | Z85: 1.931211056
U86: 13:10:00 | V86: 0.01237 | W86: 0.005868 | X86: 0.01933 | Y86: 0.009366760254 | Z86: 1.873442785
U87: 13:20:00 | V87: 0.01118 | W87: 0.004678 | X87: 0.01933 | Y87: 0.008977661133 | Z87: 1.795458571
U88: 13:30:00 | V88: 0.0102 | W88: 0.003698 | X88: 0.01933 | Y88: 0.008520812988 | Z88: 1.70423383
U89: 13:40:00 | V89: 0.00938 | W89: 0.002878 | X89: 0.01933 | Y89: 0.008022766113 | Z89: 1.604558039
U90: 13:50:00 | V90: 0.0087 | W90: 0.002198 | X90: 0.01933 | Y90: 0.0075 | Z90: 1.500090377
U91: 14:00:00 | V91: 0.00818 | W91: 0.001678 | X91: 0.01933 | Y91: 0.006970825195 | Z91: 1.394142126
U92: 14:10:00 | V92: 0.00765 | W92: 0.001148 | X92: 0.01933 | Y92: 0.006441650391 | Z92: 1.28827737
U93: 14:20:00 | V93: 0.00728 | W93: 0.000778 | X93: 0.01933 | Y93: 0.005919799805 | Z93: 1.183922868
U94: 14:30:00 | V94: 0.0069 | W94: 0.000398 | X94: 0.01933 | Y94: 0.005411682129 | Z94: 1.082368048
U95: 14:40:00 | V95: 0.00652 | W95: 1.8e-05 | X95: 0.01933 | Y95: 0.004916381836 | Z95: 0.9832474087
U96: 14:50:00 | V96: 0.00622 | W96: 0 | X96: 0.01933 | Y96: 0.004448547363 | Z96: 0.8897781167
U97: 15:00:00 | V97: 0.006 | W97: 0 | X97: 0.01933 | Y97: 0.00402557373 | Z97: 0.8050369058
U98: 15:10:00 | V98: 0.00578 | W98: 0 | X98: 0.01933 | Y98: 0.003641967773 | Z98: 0.7283614907
U99: 15:20:00 | V99: 0.00555 | W99: 0 | X99: 0.01933 | Y99: 0.00329498291 | Z99: 0.6589919839
U100: 15:30:00 | V100: 0.00532 | W100: 0 | X100: 0.01933 | Y100: 0.002980957031 | Z100: 0.5962325845
U101: 15:40:00 | V101: 0.00518 | W101: 0 | X101: 0.01933 | Y101: 0.002697143555 | Z101: 0.5394515786
U102: 15:50:00 | V102: 0.00495 | W102: 0 | X102: 0.01933 | Y102: 0.002440795898 | Z102: 0.4880721841
U103: 16:00:00 | V103: 0.0048 | W103: 0 | X103: 0.01933 | Y103: 0.002208251953 | Z103: 0.4415817056
U104: 16:10:00 | V104: 0.00465 | W104: 0 | X104: 0.01933 | Y104: 0.001997680664 | Z104: 0.3995223794
U105: 16:20:00 | V105: 0.0045 | W105: 0 | X105: 0.01933 | Y105: 0.001807250977 | Z105: 0.361473063
U106: 16:30:00 | V106: 0.00443 | W106: 0 | X106: 0.01933 | Y106: 0.001635131836 | Z106: 0.3270492349
U107: 16:40:00 | V107: 0.00427 | W107: 0 | X107: 0.01933 | Y107: 0.001479492187 | Z107: 0.2959029947
U108: 16:50:00 | V108: 0.0042 | W108: 0 | X108: 0.01933 | Y108: 0.001338500977 | Z108: 0.267723063
U109: 17:00:00 | V109: 0.00405 | W109: 0 | X109: 0.01933 | Y109: 0.001211242676 | Z109: 0.2422256265
U110: 17:10:00 | V110: 0.00398 | W110: 0 | X110: 0.01933 | Y110: 0.00109588623 | Z110: 0.2191543374
U111: 17:20:00 | V111: 0.0039 | W111: 0 | X111: 0.01933 | Y111: 0.0009915161133 | Z111: 0.198280314
U112: 17:30:00 | V112: 0.00382 | W112: 0 | X112: 0.01933 | Y112: 0.0008972167969 | Z112: 0.1793929849
U113: 17:40:00 | V113: 0.00368 | W113: 0 | X113: 0.01933 | Y113: 0.0008111572266 | Z113: 0.1623092447
U114: 17:50:00 | V114: 0.0036 | W114: 0 | X114: 0.01933 | Y114: 0.0007342529297 | Z114: 0.1468551431
U115: 18:00:00 | V115: 0.00353 | W115: 0 | X115: 0.01933 | Y115: 0.0006646728516 | Z115: 0.1328658853
U116: 18:10:00 | V116: 0.00345 | W116: 0 | X116: 0.01933 | Y116: 0.0006005859375 | Z116: 0.1202132974
U117: 18:20:00 | V117: 0.00337 | W117: 0 | X117: 0.01933 | Y117: 0.0005438232422 | Z117: 0.1087692056
U118: 18:30:00 | V118: 0.00337 | W118: 0 | X118: 0.01933 | Y118: 0.0004916381836 | Z118: 0.09841459133
U119: 18:40:00 | V119: 0.0033 | W119: 0 | X119: 0.01933 | Y119: 0.0004449462891 | Z119: 0.0890487466
U120: 18:50:00 | V120: 0.00322 | W120: 0 | X120: 0.01933 | Y120: 0.0004028320313 | Z120: 0.0805709634
U121: 19:00:00 | V121: 0.00315 | W121: 0 | X121: 0.01933 | Y121: 0.0003643798828 | Z121: 0.07289884426
U122: 19:10:00 | V122: 0.00308 | W122: 0 | X122: 0.01933 | Y122: 0.0003295898437 | Z122: 0.065959147
U123: 19:20:00 | V123: 0.00308 | W123: 0 | X123: 0.01933 | Y123: 0.0002984619141 | Z123: 0.05967862942
U124: 19:30:00 | V124: 0.003 | W124: 0 | X124: 0.01933 | Y124: 0.0002700805664 | Z124: 0.05399320461
U125: 19:40:00 | V125: 0.00292 | W125: 0 | X125: 0.01933 | Y125: 0.0002444458008 | Z125: 0.04884794094
U126: 19:50:00 | V126: 0.00292 | W126: 0 | X126: 0.01933 | Y126: 0.0002206420898 | Z126: 0.04419706203
U127: 20:00:00 | V127: 0.00285 | W127: 0 | X127: 0.01933 | Y127: 0.0001995849609 | Z127: 0.03999479153
U128: 20:10:00 | V128: 0.00285 | W128: 0 | X128: 0.01933 | Y128: 0.0001812744141 | Z128: 0.03618619778
U129: 20:20:00 | V129: 0.00278 | W129: 0 | X129: 0.01933 | Y129: 0.0001638793945 | Z129: 0.03273465969
U130: 20:30:00 | V130: 0.00278 | W130: 0 | X130: 0.01933 | Y130: 0.0001483154297 | Z130: 0.02961271145
U131: 20:40:00 | V131: 0.0027 | W131: 0 | X131: 0.01933 | Y131: 0.0001336669922 | Z131: 0.02679288723
U132: 20:50:00 | V132: 0.0027 | W132: 0 | X132: 0.01933 | Y132: 0.0001208496094 | Z132: 0.02424772121
U133: 21:00:00 | V133: 0.00262 | W133: 0 | X133: 0.01933 | Y133: 0.0001098632812 | Z133: 0.02194059231
U134: 21:10:00 | V134: 0.00262 | W134: 0 | X134: 0.01933 | Y134: 9.887695312e-05 | Z134: 0.01985318996
U135: 21:20:00 | V135: 0.00255 | W135: 0 | X135: 0.01933 | Y135: 8.972167969e-05 | Z135: 0.01796720364
U136: 21:30:00 | V136: 0.00255 | W136: 0 | X136: 0.01933 | Y136: 8.148193359e-05 | Z136: 0.0162551675
U137: 21:40:00 | V137: 0.00247 | W137: 0 | X137: 0.01933 | Y137: 7.32421875e-05 | Z137: 0.01470792629
U138: 21:50:00 | V138: 0.00247 | W138: 0 | X138: 0.01933 | Y138: 6.683349609e-05 | Z138: 0.01330716946
U139: 22:00:00 | V139: 0.0024 | W139: 0 | X139: 0.01933 | Y139: 6.042480469e-05 | Z139: 0.01203458645
U140: 22:10:00 | V140: 0.0024 | W140: 0 | X140: 0.01933 | Y140: 5.401611328e-05 | Z140: 0.01089017727
U141: 22:20:00 | V141: 0.0024 | W141: 0 | X141: 0.01933 | Y141: 4.943847656e-05 | Z141: 0.00985563137
U142: 22:30:00 | V142: 0.00233 | W142: 0 | X142: 0.01933 | Y142: 4.486083984e-05 | Z142: 0.008912638206
U143: 22:40:00 | V143: 0.00233 | W143: 0 | X143: 0.01933 | Y143: 4.028320313e-05 | Z143: 0.008061197777
U144: 22:50:00 | V144: 0.00233 | W144: 0 | X144: 0.01933 | Y144: 3.662109375e-05 | Z144: 0.007292154808
U145: 23:00:00 | V145: 0.00225 | W145: 0 | X145: 0.01933 | Y145: 3.295898437e-05 | Z145: 0.006596354027
U146: 23:10:00 | V146: 0.00225 | W146: 0 | X146: 0.01933 | Y146: 3.021240234e-05 | Z146: 0.005964640159
U147: 23:20:00 | V147: 0.00225 | W147: 0 | X147: 0.01933 | Y147: 2.655029297e-05 | Z147: 0.005397013206
U148: 23:30:00 | V148: 0.00217 | W148: 0 | X148: 0.01933 | Y148: 2.471923828e-05 | Z148: 0.004884317894
U149: 23:40:00 | V149: 0.00217 | W149: 0 | X149: 0.01933 | Y149: 2.197265625e-05 | Z149: 0.004417398948
U150: 23:50:00 | V150: 0.00217 | W150: 0 | X150: 0.01933 | Y150: 2.014160156e-05 | Z150: 0.00399625637
U151: 1 | V151: 0.0021 | W151: 0 | X151: 0.01933 | Y151: 1.831054687e-05 | Z151: 0.003611734886
